Workbook

Sheet INICIO
E5: INSTITUTO POLITÉCNICO NACIONAL
E7: ESCUELA SUPERIOR DE CÓMPUTO
F10: Administración Financiera
G22: Elaboro: EDUARDO RODRÍGUEZ FLORES
H23: JOSEFINA HERNÁNDEZ JAIME
H24: YASMÍN IVETTE JIMÉNEZ GALÁN

Sheet ENC
A5: Bienvenido al prototipo financiero Presupuesto Maestro. | H5: Permite calculos los presupuestos que bajo el criterio de utilidad financiera existen: el presupuesto de operación y presupuestos financieros.
A10: Este recurso didáctico digital esta desarrollado pensando en ti, para que tus clases sean más receptivas, participativas, proactivas y amenas. Te facilitaran las condiciones necesarias para que puedas llevar a cabo las actividades programadas para este tema con el maximo provecho | H10: En la sección de RESULTADOS podrás ver todos los puntos importantes a destacar de los presupuestos que se mencionan y se calculan.
H15: ¡Puedes ingresar los datos que tu quieras y ver los resultados!

Sheet INSTRU
E10: En cada parte del simulador podrás encontrar diversas opciones para visualizar o editar.
E13: Si deseas modificar los datos, existe una unica sección destinada a ello. Todos los demás son para visualizar los resultados. Es necesario que se llenen todos los datos que se piden para que el simulador funcione de manera correcta.
E19: En la sección de simulador podrás seleccionar qué deseas ver, como presupuestos, estado de resultado, presupuesto de ventas, balance general entre otros.

Sheet ANT

Sheet DATOS
B13: Ventas históricas de la empresa "El Emperador, S.A. de C.V."
B15: Trimestre | C15: 1 | D15: 2 | E15: 3 | F15: 4 | G15: 5 | H15: 6 | I15: 7 | J15: 8 | K15: 9 | L15: 10 | M15: 11 | N15: 12
B16: Ventas Históricas (Unidades) | C16: 150000 | D16: 125000 | E16: 100000 | F16: 170000 | G16: 145000 | H16: 118000 | I16: 90000 | J16: 135000 | K16: 110000 | L16: 150000 | M16: 130000 | N16: 180000
B17: Ingresos totales esperados | N17: 13000000
B19: Ventas y Mercadotecnica | F19: Tasa de crecimiento | H19: Materias primas | I19: Costo unitario | J19: Estandar por producto | K19: Tasa de crecimiento | L19: Inventario inicial | M19: Inventario Final | N19: Compras esperadas
B20: Precio propuesto para el producto | E20: 72.5 | F20: 0.04 | H20: A | I20: 2 | J20: 1 | K20: 0.03 | L20: 5000 | M20: 7000 | N20: 275000
B21: Publicidad | E21: 10000 | F21: 0.03 | H21: B | I21: 2 | J21: 2 | K21: 0.03 | L21: 12000 | M21: 14000 | N21: 590000
B22: Sueldo vendedores | E22: 30000 | F22: 0.02 | H22: C | I22: 4 | J22: 1 | K22: 0.03 | L22: 6000 | M22: 7000 | N22: 580000
B23: Número de vendedores | E23: 50
B24: Gastos fijos de venta | E24: 50000
B25: Inventario inicial | E25: 15000 | H25: Nivel de Utilidades | J25: Tasa de Impuesto
B26: Inventario final | E26: 15500 | H26: Limite Inferior | I26: Limite Superior
H27: 0 | I27: 999 | J27: 0.05
B28: Produccion | F28: Tasa de crecimiento | H28: 1000 | I28: 9999 | J28: 0.1
B29: Capacidad de produccion | E29: 140000 | H29: 10000 | I29: 49999 | J29: 0.15
B30: Costo de produccion faltante | E30: 40 | F30: 0.03 | H30: 50000 | I30: 99999 | J30: 0.2
B31: Costo unitario de mano de obra | E31: 6 | F31: 0.03 | H31: 100000 | I31: 499999 | J31: 0.25
B32: Costo unitario de mantenimiento | E32: 5 | F32: 0.03 | H32: 500000 | I32: 999999 | J32: 0.3
B33: Costo unitario de produccion trimestre 12 | E33: 20 | F33: 0.03 | H33: 1000000 | J33: 0.35
B34: Estándar de mano de obra | E34: 1
B36: Administracion | F36: Tasa de crecimiento | H36: Finanzas | L36: Tasa de crecimiento
B37: Empleados de administracion | E37: 25 | H37: Planta y maquinaria | K37: 500000
B38: Sueldo empleados administracion | E38: 50000 | F38: 0.02 | H38: Tiempo de vida estimado (años) | K38: 5
B39: Gastos fijos de administracion | E39: 50000 | H39: Valor de recuperacion | K39: 80000
H40: Efectivo | K40: 253500
B41: Depreciacion acumulada | E41: 0 | H41: Préstamo a corto plazo | K41: 100000 | L41: 0.035
B42: Utilidad o pérdida acumulada | E42: 0 | H42: Capital Social | K42: 7800000

Sheet SIMULADOR

Sheet PI
C10: Trimestre | D10: 13 | E10: 14 | F10: 15 | G10: 16 | H10: 17 | I10: 18 | J10: 19 | K10: 20 | L10: 21 | M10: 22 | N10: 23 | O10: 24
C11: Volumen estimado de ventas (Unidades) | D11: =IF(PV!$Q$22=1,PV!L11,PV!N11) -> 141924.2424 | E11: =IF(PV!$Q$22=1,PV!L12,PV!N12) -> 143207.4592 | F11: =IF(PV!$Q$22=1,PV!L13,PV!N13) -> 144490.676 | G11: =IF(PV!$Q$22=1,PV!L14,PV!N14) -> 145773.8928 | H11: =IF(PV!$Q$22=1,PV!L15,PV!N15) -> 147057.1096 | I11: =IF(PV!$Q$22=1,PV!L16,PV!N16) -> 148340.3263 | J11: =IF(PV!$Q$22=1,PV!L17,PV!N17) -> 149623.5431 | K11: =IF(PV!$Q$22=1,PV!L18,PV!N18) -> 150906.7599 | L11: =IF(PV!$Q$22=1,PV!L19,PV!N19) -> 152189.9767 | M11: =IF(PV!$Q$22=1,PV!L20,PV!N20) -> 153473.1935 | N11: =IF(PV!$Q$22=1,PV!L21,PV!N21) -> 154756.4103 | O11: =IF(PV!$Q$22=1,PV!L22,PV!N22) -> 156039.627
B12: * | C12: Precio unitario | D12: =DATOS!E20 -> 72.5 | E12: =D12*(1+DATOS!$F20) -> 75.4 | F12: =E12*(1+DATOS!$F20) -> 78.416 | G12: =F12*(1+DATOS!$F20) -> 81.55264 | H12: =G12*(1+DATOS!$F20) -> 84.8147456 | I12: =H12*(1+DATOS!$F20) -> 88.20733542 | J12: =I12*(1+DATOS!$F20) -> 91.73562884 | K12: =J12*(1+DATOS!$F20) -> 95.40505399 | L12: =K12*(1+DATOS!$F20) -> 99.22125615 | M12: =L12*(1+DATOS!$F20) -> 103.1901064 | N12: =M12*(1+DATOS!$F20) -> 107.3177107 | O12: =N12*(1+DATOS!$F20) -> 111.6104191
B13: = | C13: Ingresos Totales presupuestados | D13: =D11*D12 -> 10289507.58 | E13: =E11*E12 -> 10797842.42 | F13: 11330380.85 | G13: 11888245.8 | H13: 12472611.34 | I13: 13084704.92 | J13: 13725809.82 | K13: 14397267.58 | L13: 15100480.66 | M13: 15836915.16 | N13: 16608103.66 | O13: 17415648.17

Sheet PV
B10: Trimestre n=12 | C10: Ventas 2015 - 2017 | D10: Ventas promedio | E10: Indice Estacional | F10: Periodo t | G10: Ventas Y | H10: tY | I10: t*t | K10: Trimestre | L10: Pronósticos de Ventas 2018 - 2020 | M10: IE | N10: Pronósticos de Ventas Ajustado 2018 - 2020 | P10: Pronóstico | Q10: A + Bt
B11: 1 | C11: =DATOS!C16 -> 150000 | D11: =C11 -> 150000 | E11: =D11/D23 -> 1.122894573 | F11: 1 | G11: =D11 -> 150000 | H11: =F11*G11 -> 150000 | I11: =F11*F11 -> 1 | K11: 13 | L11: =Q11+Q12*K11 -> 141924.2424 | M11: =E11 -> 1.122894573 | N11: =L11*M11 -> 159365.9615 | P11: A | Q11: =(G23-Q12*F23)/F22 -> 125242.4242
B12: 2 | C12: =DATOS!D16 -> 125000 | D12: =C12 -> 125000 | E12: =D12/D23 -> 0.9357454772 | F12: 2 | G12: =D12 -> 125000 | H12: =F12*G12 -> 250000 | I12: =F12*F12 -> 4 | K12: 14 | L12: =Q11+Q12*K12 -> 143207.4592 | M12: =E12 -> 0.9357454772 | N12: =L12*M12 -> 134005.7323 | P12: B | Q12: =(F22*H23-F23*G23)/(F22*I23-F23*F23) -> 1283.216783
B13: 3 | C13: =DATOS!E16 -> 100000 | D13: 100000 | E13: =D13/D23 -> 0.7485963818 | F13: 3 | G13: 100000 | H13: =F13*G13 -> 300000 | I13: 9 | K13: 15 | L13: =Q11+Q12*K13 -> 144490.676 | M13: 0.7485963818 | N13: 108165.1972
B14: 4 | C14: =DATOS!F16 -> 170000 | D14: 170000 | E14: =D14/D23 -> 1.272613849 | F14: 4 | G14: 170000 | H14: 680000 | I14: 16 | K14: 16 | L14: =Q11+Q12*K14 -> 145773.8928 | M14: 1.272613849 | N14: 185513.8748
B15: 5 | C15: =DATOS!G16 -> 145000 | D15: 145000 | E15: =D15/D23 -> 1.085464754 | F15: 5 | G15: 145000 | H15: 725000 | I15: 25 | K15: 17 | L15: =Q11+Q12*K15 -> 147057.1096 | M15: 1.085464754 | N15: 159625.3092
B16: 6 | C16: =DATOS!H16 -> 118000 | D16: 118000 | E16: =D16/D23 -> 0.8833437305 | F16: 6 | G16: 118000 | H16: 708000 | I16: 36 | K16: 18 | L16: =Q11+Q12*K16 -> 148340.3263 | M16: 0.8833437305 | N16: 131035.4973
B17: 7 | C17: =DATOS!I16 -> 90000 | D17: 90000 | E17: =D17/D23 -> 0.6737367436 | F17: 7 | G17: 90000 | H17: 630000 | I17: 49 | K17: 19 | L17: =Q11+Q12*K17 -> 149623.5431 | M17: 0.6737367436 | N17: 100806.8787
B18: 8 | C18: =DATOS!J16 -> 135000 | D18: 135000 | E18: =D18/D23 -> 1.010605115 | F18: 8 | G18: 135000 | H18: 1080000 | I18: 64 | K18: 20 | L18: =Q11+Q12*K18 -> 150906.7599 | M18: 1.010605115 | N18: 152507.1435
B19: 9 | C19: =DATOS!K16 -> 110000 | D19: 110000 | E19: =D19/D23 -> 0.82345602 | F19: 9 | G19: 110000 | H19: 990000 | I19: 81 | K19: 21 | L19: =Q11+Q12*K19 -> 152189.9767 | M19: 0.82345602 | N19: 125321.7525
B20: 10 | C20: =DATOS!L16 -> 150000 | D20: 150000 | E20: =D20/D23 -> 1.122894573 | F20: 10 | G20: 150000 | H20: 1500000 | I20: 100 | K20: 22 | L20: =Q11+Q12*K20 -> 153473.1935 | M20: 1.122894573 | N20: 172334.216
B21: 11 | C21: =DATOS!M16 -> 130000 | D21: 130000 | E21: =D21/D23 -> 0.9731752963 | F21: 11 | G21: 130000 | H21: 1430000 | I21: 121 | K21: 23 | L21: =Q11+Q12*K21 -> 154756.4103 | M21: 0.9731752963 | N21: 150605.1154
B22: 12 | C22: =DATOS!N16 -> 180000 | D22: 180000 | E22: =D22/D23 -> 1.347473487 | F22: 12 | G22: 180000 | H22: =F22*G22 -> 2160000 | I22: 144 | K22: 24 | L22: =Q11+Q12*K22 -> 156039.627 | M22: 1.347473487 | N22: 210259.2604 | P22: Lineal | Q22: 1
B23: Total | D23: =SUM(D11:D22)/B22 -> 133583.3333 | F23: =SUM(F11:F22) -> 78 | G23: =SUM(G11:G22) -> 1603000 | H23: =SUM(H11:H22) -> 10603000 | I23: =SUM(I11:I22) -> 650 | P23: IE | Q23: 0

Sheet PP
C10: Trimestre | D10: 13 | E10: 14 | F10: 15 | G10: 16 | H10: 17 | I10: 18 | J10: 19 | K10: 20 | L10: 21 | M10: 22 | N10: 23 | O10: 24
C11: Volumen Estimado de ventas | D11: =PI!D11 -> 141924.2424 | E11: =PI!E11 -> 143207.4592 | F11: =PI!F11 -> 144490.676 | G11: =PI!G11 -> 145773.8928 | H11: =PI!H11 -> 147057.1096 | I11: =PI!I11 -> 148340.3263 | J11: =PI!J11 -> 149623.5431 | K11: =PI!K11 -> 150906.7599 | L11: =PI!L11 -> 152189.9767 | M11: =PI!M11 -> 153473.1935 | N11: =PI!N11 -> 154756.4103 | O11: =PI!O11 -> 156039.627
B12: + | C12: Inventario final deseado 10% ventas siguiente trimestre | D12: =E11*0.1 -> 14320.74592 | E12: =F11*0.1 -> 14449.0676 | F12: =G11*0.1 -> 14577.38928 | G12: 14705.71096 | H12: 14834.03263 | I12: 14962.35431 | J12: 15090.67599 | K12: =L11*0.1 -> 15218.99767 | L12: 15347.31935 | M12: 15475.64103 | N12: =O11*0.1 -> 15603.9627 | O12: =DATOS!E26 -> 15500
B13: = | C13: Necesidades de producción | D13: =D11+D12 -> 156244.9883 | E13: =E11+E12 -> 157656.5268 | F13: 159068.0653 | G13: 160479.6037 | H13: 161891.1422 | I13: 163302.6807 | J13: 164714.2191 | K13: 166125.7576 | L13: 167537.296 | M13: 168948.8345 | N13: 170360.373 | O13: 171539.627
B14: - | C14: Inventario Inicial | D14: =DATOS!E25 -> 15000 | E14: =D12 -> 14320.74592 | F14: =E12 -> 14449.0676 | G14: =F12 -> 14577.38928 | H14: 14705.71096 | I14: 14834.03263 | J14: 14962.35431 | K14: 15090.67599 | L14: 15218.99767 | M14: 15347.31935 | N14: 15475.64103 | O14: 15603.9627
B15: = | C15: Producción Requerida | D15: =D13-D14 -> 141244.9883 | E15: =E13-E14 -> 143335.7809 | F15: =F13-F14 -> 144618.9977 | G15: 145902.2145 | H15: 147185.4312 | I15: 148468.648 | J15: 149751.8648 | K15: 151035.0816 | L15: 152318.2984 | M15: 153601.5152 | N15: 154884.7319 | O15: 155935.6643
B16: - | C16: Producción programada | D16: =DATOS!E29 -> 140000 | E16: =DATOS!E29 -> 140000 | F16: =DATOS!E29 -> 140000 | G16: =DATOS!E29 -> 140000 | H16: =DATOS!E29 -> 140000 | I16: =DATOS!E29 -> 140000 | J16: =DATOS!E29 -> 140000 | K16: =DATOS!E29 -> 140000 | L16: =DATOS!E29 -> 140000 | M16: =DATOS!E29 -> 140000 | N16: =DATOS!E29 -> 140000 | O16: =DATOS!E29 -> 140000
B17: = | C17: Maquila | D17: =D15-D16 -> 1244.988345 | E17: =E15-E16 -> 3335.780886 | F17: 4618.997669 | G17: 5902.214452 | H17: 7185.431235 | I17: 8468.648019 | J17: 9751.864802 | K17: 11035.08159 | L17: 12318.29837 | M17: 13601.51515 | N17: 14884.73193 | O17: =O15-O16 -> 15935.66434

Sheet PRC
C9: MATERIA PRIMA A
C10: Trimestre | D10: 13 | E10: 14 | F10: 15 | G10: 16 | H10: 17 | I10: 18 | J10: 19 | K10: 20 | L10: 21 | M10: 22 | N10: 23 | O10: 24
C11: Produccion requerida | D11: =IF(PP!D17<0,PP!D15,PP!D16) -> 140000 | E11: =IF(PP!E17<0,PP!E15,PP!E16) -> 140000 | F11: =IF(PP!F17<0,PP!F15,PP!F16) -> 140000 | G11: =IF(PP!G17<0,PP!G15,PP!G16) -> 140000 | H11: =IF(PP!H17<0,PP!H15,PP!H16) -> 140000 | I11: =IF(PP!I17<0,PP!I15,PP!I16) -> 140000 | J11: =IF(PP!J17<0,PP!J15,PP!J16) -> 140000 | K11: =IF(PP!K17<0,PP!K15,PP!K16) -> 140000 | L11: =IF(PP!L17<0,PP!L15,PP!L16) -> 140000 | M11: =IF(PP!M17<0,PP!M15,PP!M16) -> 140000 | N11: =IF(PP!N17<0,PP!N15,PP!N16) -> 140000 | O11: =IF(PP!O17<0,PP!O15,PP!O16) -> 140000
B12: * | C12: Estándar de materia prima A por producto | D12: =DATOS!J20 -> 1 | E12: =DATOS!J20 -> 1 | F12: =DATOS!J20 -> 1 | G12: =DATOS!J20 -> 1 | H12: =DATOS!J20 -> 1 | I12: =DATOS!J20 -> 1 | J12: =DATOS!J20 -> 1 | K12: =DATOS!J20 -> 1 | L12: =DATOS!J20 -> 1 | M12: =DATOS!J20 -> 1 | N12: =DATOS!J20 -> 1 | O12: =DATOS!J20 -> 1
B13: = | C13: Materia prima A requerida para la producción | D13: =D11*D12 -> 140000 | E13: 140000 | F13: 140000 | G13: 140000 | H13: 140000 | I13: 140000 | J13: 140000 | K13: 140000 | L13: 140000 | M13: 140000 | N13: 140000 | O13: 140000
B14: + | C14: Inventario final deseado de materia prima A | D14: =E13*0.05 -> 7000 | E14: =F13*0.05 -> 7000 | F14: 7000 | G14: 7000 | H14: 7000 | I14: 7000 | J14: 7000 | K14: 7000 | L14: 7000 | M14: 7000 | N14: 7000 | O14: =DATOS!M20 -> 7000
B15: = | C15: Unidades necesarias de materia prima A | D15: =D13+D14 -> 147000 | E15: =E13+E14 -> 147000 | F15: 147000 | G15: 147000 | H15: 147000 | I15: 147000 | J15: 147000 | K15: 147000 | L15: 147000 | M15: 147000 | N15: 147000 | O15: 147000
B16: - | C16: Inventario inicial de materia prima A | D16: =DATOS!L20 -> 5000 | E16: =D14 -> 7000 | F16: =E14 -> 7000 | G16: 7000 | H16: 7000 | I16: 7000 | J16: 7000 | K16: 7000 | L16: 7000 | M16: 7000 | N16: 7000 | O16: 7000
B17: = | C17: Total de unidades de materia prima A | D17: =D15-D16 -> 142000 | E17: =E15-E16 -> 140000 | F17: 140000 | G17: 140000 | H17: =H15-H16 -> 140000 | I17: 140000 | J17: 140000 | K17: 140000 | L17: 140000 | M17: 140000 | N17: 140000 | O17: 140000
B18: * | C18: Costo por unidad de materia prima A | D18: =DATOS!I20 -> 2 | E18: =D18*(1+DATOS!K20) -> 2.06 | F18: =E18*(1+DATOS!K20) -> 2.1218 | G18: =F18*(1+DATOS!K20) -> 2.185454 | H18: =G18*(1+DATOS!K20) -> 2.25101762 | I18: =H18*(1+DATOS!K20) -> 2.318548149 | J18: =I18*(1+DATOS!K20) -> 2.388104593 | K18: =J18*(1+DATOS!K20) -> 2.459747731 | L18: =K18*(1+DATOS!K20) -> 2.533540163 | M18: =L18*(1+DATOS!K20) -> 2.609546368 | N18: =M18*(1+DATOS!K20) -> 2.687832759 | O18: =N18*(1+DATOS!K20) -> 2.768467741
B19: = | C19: Costo total de materia prima A | D19: =D17*D18 -> 284000 | E19: =E17*E18 -> 288400 | F19: 297052 | G19: 305963.56 | H19: 315142.4668 | I19: 324596.7408 | J19: 334334.643 | K19: 344364.6823 | L19: 354695.6228 | M19: 365336.4915 | N19: 376296.5862 | O19: 387585.4838
C21: MATERIA PRIMA B
C22: Trimestre | D22: 13 | E22: 14 | F22: 15 | G22: 16 | H22: 17 | I22: 18 | J22: 19 | K22: 20 | L22: 21 | M22: 22 | N22: 23 | O22: 24
C23: Producción requerida | D23: =IF(PP!D17<0,PP!D15,PP!D16) -> 140000 | E23: =IF(PP!E17<0,PP!E15,PP!E16) -> 140000 | F23: =IF(PP!F17<0,PP!F15,PP!F16) -> 140000 | G23: =IF(PP!G17<0,PP!G15,PP!G16) -> 140000 | H23: =IF(PP!H17<0,PP!H15,PP!H16) -> 140000 | I23: =IF(PP!I17<0,PP!I15,PP!I16) -> 140000 | J23: =IF(PP!J17<0,PP!J15,PP!J16) -> 140000 | K23: =IF(PP!K17<0,PP!K15,PP!K16) -> 140000 | L23: =IF(PP!L17<0,PP!L15,PP!L16) -> 140000 | M23: =IF(PP!M17<0,PP!M15,PP!M16) -> 140000 | N23: =IF(PP!N17<0,PP!N15,PP!N16) -> 140000 | O23: =IF(PP!O17<0,PP!O15,PP!O16) -> 140000
B24: * | C24: Estándar de materia prima B por producto | D24: =DATOS!J21 -> 2 | E24: =DATOS!J21 -> 2 | F24: =DATOS!J21 -> 2 | G24: =DATOS!J21 -> 2 | H24: =DATOS!J21 -> 2 | I24: =DATOS!J21 -> 2 | J24: =DATOS!J21 -> 2 | K24: =DATOS!J21 -> 2 | L24: =DATOS!J21 -> 2 | M24: =DATOS!J21 -> 2 | N24: =DATOS!J21 -> 2 | O24: =DATOS!J21 -> 2
B25: = | C25: Materia prima B requerida para la producción | D25: =D23*D24 -> 280000 | E25: =E23*E24 -> 280000 | F25: 280000 | G25: 280000 | H25: 280000 | I25: 280000 | J25: 280000 | K25: 280000 | L25: 280000 | M25: 280000 | N25: 280000 | O25: 280000
B26: + | C26: Inventario final deseado de materia prima B | D26: =E25*0.05 -> 14000 | E26: =F25*0.05 -> 14000 | F26: 14000 | G26: 14000 | H26: 14000 | I26: 14000 | J26: 14000 | K26: 14000 | L26: 14000 | M26: 14000 | N26: 14000 | O26: =DATOS!M21 -> 14000
B27: = | C27: Unidades necesarias de materia prima B | D27: =D25+D26 -> 294000 | E27: =E25+E26 -> 294000 | F27: 294000 | G27: 294000 | H27: 294000 | I27: 294000 | J27: 294000 | K27: 294000 | L27: 294000 | M27: 294000 | N27: 294000 | O27: =O25+O26 -> 294000
B28: - | C28: Inventario inicial de materia prima B | D28: =DATOS!L21 -> 12000 | E28: =D26 -> 14000 | F28: =E26 -> 14000 | G28: 14000 | H28: 14000 | I28: 14000 | J28: 14000 | K28: 14000 | L28: 14000 | M28: 14000 | N28: 14000 | O28: 14000
B29: = | C29: Total de unidades de materia prima B | D29: =D27-D28 -> 282000 | E29: =E27-E28 -> 280000 | F29: 280000 | G29: 280000 | H29: 280000 | I29: 280000 | J29: 280000 | K29: 280000 | L29: 280000 | M29: 280000 | N29: 280000 | O29: 280000
B30: * | C30: Costo por unidad de materia prima B | D30: =DATOS!I21 -> 2 | E30: =D30*(1+DATOS!K21) -> 2.06 | F30: =E30*(1+DATOS!K21) -> 2.1218 | G30: =F30*(1+DATOS!K21) -> 2.185454 | H30: =G30*(1+DATOS!K21) -> 2.25101762 | I30: =H30*(1+DATOS!K21) -> 2.318548149 | J30: =I30*(1+DATOS!K21) -> 2.388104593 | K30: =J30*(1+DATOS!K21) -> 2.459747731 | L30: =K30*(1+DATOS!K21) -> 2.533540163 | M30: =L30*(1+DATOS!K21) -> 2.609546368 | N30: =M30*(1+DATOS!K21) -> 2.687832759 | O30: =N30*(1+DATOS!K21) -> 2.768467741
B31: = | C31: Costo total de materia prima B | D31: =D29*D30 -> 564000 | E31: =E29*E30 -> 576800 | F31: 594104 | G31: 611927.12 | H31: 630284.9336 | I31: 649193.4816 | J31: 668669.2861 | K31: 688729.3646 | L31: 709391.2456 | M31: 730672.9829 | N31: 752593.1724 | O31: 775170.9676
C33: MATERIA PRIMA C
C34: Trimestre | D34: 13 | E34: 14 | F34: 15 | G34: 16 | H34: 17 | I34: 18 | J34: 19 | K34: 20 | L34: 21 | M34: 22 | N34: 23 | O34: 24
C35: Producción requerida | D35: =IF(PP!D17<0,PP!D15,PP!D16) -> 140000 | E35: =IF(PP!E17<0,PP!E15,PP!E16) -> 140000 | F35: =IF(PP!F17<0,PP!F15,PP!F16) -> 140000 | G35: =IF(PP!G17<0,PP!G15,PP!G16) -> 140000 | H35: =IF(PP!H17<0,PP!H15,PP!H16) -> 140000 | I35: =IF(PP!I17<0,PP!I15,PP!I16) -> 140000 | J35: =IF(PP!J17<0,PP!J15,PP!J16) -> 140000 | K35: =IF(PP!K17<0,PP!K15,PP!K16) -> 140000 | L35: =IF(PP!L17<0,PP!L15,PP!L16) -> 140000 | M35: =IF(PP!M17<0,PP!M15,PP!M16) -> 140000 | N35: =IF(PP!N17<0,PP!N15,PP!N16) -> 140000 | O35: =IF(PP!O17<0,PP!O15,PP!O16) -> 140000
B36: * | C36: Estándar de materia prima C por producto | D36: =DATOS!J22 -> 1 | E36: =DATOS!J22 -> 1 | F36: =DATOS!J22 -> 1 | G36: =DATOS!J22 -> 1 | H36: =DATOS!J22 -> 1 | I36: =DATOS!J22 -> 1 | J36: =DATOS!J22 -> 1 | K36: =DATOS!J22 -> 1 | L36: =DATOS!J22 -> 1 | M36: =DATOS!J22 -> 1 | N36: =DATOS!J22 -> 1 | O36: =DATOS!J22 -> 1
B37: = | C37: Materia prima C requerida para la producción | D37: =D35*D36 -> 140000 | E37: =E35*E36 -> 140000 | F37: 140000 | G37: 140000 | H37: 140000 | I37: 140000 | J37: 140000 | K37: 140000 | L37: 140000 | M37: 140000 | N37: 140000 | O37: 140000
B38: + | C38: Inventario final deseado de materia prima C | D38: =E37*0.05 -> 7000 | E38: =F37*0.05 -> 7000 | F38: 7000 | G38: 7000 | H38: 7000 | I38: 7000 | J38: 7000 | K38: 7000 | L38: 7000 | M38: 7000 | N38: =O37*0.05 -> 7000 | O38: =DATOS!M22 -> 7000
B39: = | C39: Unidades necesarias de materia prima C | D39: =D37+D38 -> 147000 | E39: =E37+E38 -> 147000 | F39: 147000 | G39: 147000 | H39: 147000 | I39: 147000 | J39: 147000 | K39: 147000 | L39: 147000 | M39: 147000 | N39: 147000 | O39: 147000
B40: - | C40: Inventario inicial de materia prima C | D40: =DATOS!L22 -> 6000 | E40: =D38 -> 7000 | F40: =E38 -> 7000 | G40: 7000 | H40: 7000 | I40: 7000 | J40: 7000 | K40: 7000 | L40: 7000 | M40: 7000 | N40: 7000 | O40: 7000
B41: = | C41: Total de unidades de materia prima C | D41: =D39-D40 -> 141000 | E41: =E39-E40 -> 140000 | F41: 140000 | G41: 140000 | H41: 140000 | I41: 140000 | J41: 140000 | K41: 140000 | L41: 140000 | M41: 140000 | N41: 140000 | O41: 140000
B42: * | C42: Costo por unidad de materia prima C | D42: =DATOS!I22 -> 4 | E42: =D42*(1+DATOS!K22) -> 4.12 | F42: =E42*(1+DATOS!K22) -> 4.2436 | G42: =F42*(1+DATOS!K22) -> 4.370908 | H42: =G42*(1+DATOS!K22) -> 4.50203524 | I42: =H42*(1+DATOS!K22) -> 4.637096297 | J42: =I42*(1+DATOS!K22) -> 4.776209186 | K42: =J42*(1+DATOS!K22) -> 4.919495462 | L42: =K42*(1+DATOS!K22) -> 5.067080326 | M42: =L42*(1+DATOS!K22) -> 5.219092735 | N42: =M42*(1+DATOS!K22) -> 5.375665517 | O42: =N42*(1+DATOS!K22) -> 5.536935483
B43: = | C43: Costo total de materia prima C | D43: =D41*D42 -> 564000 | E43: =E41*E42 -> 576800 | F43: 594104 | G43: 611927.12 | H43: 630284.9336 | I43: 649193.4816 | J43: 668669.2861 | K43: 688729.3646 | L43: 709391.2456 | M43: 730672.9829 | N43: 752593.1724 | O43: 775170.9676

Sheet PMO
C10: Trimestre | D10: 13 | E10: 14 | F10: 15 | G10: 16 | H10: 17 | I10: 18 | J10: 19 | K10: 20 | L10: 21 | M10: 22 | N10: 23 | O10: 24
C11: Producción Requerida | D11: =IF(PP!D17<0,PP!D15,PP!D16) -> 140000 | E11: =IF(PP!E17<0,PP!E15,PP!E16) -> 140000 | F11: =IF(PP!F17<0,PP!F15,PP!F16) -> 140000 | G11: =IF(PP!G17<0,PP!G15,PP!G16) -> 140000 | H11: =IF(PP!H17<0,PP!H15,PP!H16) -> 140000 | I11: =IF(PP!I17<0,PP!I15,PP!I16) -> 140000 | J11: =IF(PP!J17<0,PP!J15,PP!J16) -> 140000 | K11: =IF(PP!K17<0,PP!K15,PP!K16) -> 140000 | L11: =IF(PP!L17<0,PP!L15,PP!L16) -> 140000 | M11: =IF(PP!M17<0,PP!M15,PP!M16) -> 140000 | N11: =IF(PP!N17<0,PP!N15,PP!N16) -> 140000 | O11: =IF(PP!O17<0,PP!O15,PP!O16) -> 140000
B12: * | C12: Estándar de mano de obra directa | D12: =DATOS!E34 -> 1 | E12: =DATOS!E34 -> 1 | F12: =DATOS!E34 -> 1 | G12: =DATOS!E34 -> 1 | H12: =DATOS!E34 -> 1 | I12: =DATOS!E34 -> 1 | J12: =DATOS!E34 -> 1 | K12: =DATOS!E34 -> 1 | L12: =DATOS!E34 -> 1 | M12: =DATOS!E34 -> 1 | N12: =DATOS!E34 -> 1 | O12: =DATOS!E34 -> 1
B13: = | C13: Horas totales requeridas de mano de obra directa | D13: =D11*D12 -> 140000 | E13: =E11*E12 -> 140000 | F13: 140000 | G13: 140000 | H13: 140000 | I13: 140000 | J13: 140000 | K13: 140000 | L13: 140000 | M13: 140000 | N13: 140000 | O13: 140000
B14: * | C14: Costo por hora de mano de obra directa | D14: =DATOS!E31 -> 6 | E14: =D14*(1+DATOS!F31) -> 6.18 | F14: =E14*(1+DATOS!F31) -> 6.3654 | G14: =F14*(1+DATOS!F31) -> 6.556362 | H14: =G14*(1+DATOS!F31) -> 6.75305286 | I14: =H14*(1+DATOS!F31) -> 6.955644446 | J14: =I14*(1+DATOS!F31) -> 7.164313779 | K14: =J14*(1+DATOS!F31) -> 7.379243193 | L14: =K14*(1+DATOS!F31) -> 7.600620488 | M14: =L14*(1+DATOS!F31) -> 7.828639103 | N14: =M14*(1+DATOS!F31) -> 8.063498276 | O14: =N14*(1+DATOS!F31) -> 8.305403224
B15: = | C15: Costo total de mano de obra directa | D15: =D13*D14 -> 840000 | E15: =E13*E14 -> 865200 | F15: 891156 | G15: 917890.68 | H15: 945427.4004 | I15: 973790.2224 | J15: 1003003.929 | K15: 1033094.047 | L15: 1064086.868 | M15: 1096009.474 | N15: 1128889.759 | O15: 1162756.451

Sheet PGIF
C10: Trimestre | D10: 13 | E10: 14 | F10: 15 | G10: 16 | H10: 17 | I10: 18 | J10: 19 | K10: 20 | L10: 21 | M10: 22 | N10: 23 | O10: 24
C11: Depreciación de la planta | D11: =(DATOS!$K$37-DATOS!$K$39)/(DATOS!$K$38*8) -> 10500 | E11: =(DATOS!$K$37-DATOS!$K$39)/(DATOS!$K$38*8) -> 10500 | F11: =(DATOS!$K$37-DATOS!$K$39)/(DATOS!$K$38*8) -> 10500 | G11: =(DATOS!$K$37-DATOS!$K$39)/(DATOS!$K$38*8) -> 10500 | H11: =(DATOS!$K$37-DATOS!$K$39)/(DATOS!$K$38*8) -> 10500 | I11: =(DATOS!$K$37-DATOS!$K$39)/(DATOS!$K$38*8) -> 10500 | J11: =(DATOS!$K$37-DATOS!$K$39)/(DATOS!$K$38*8) -> 10500 | K11: =(DATOS!$K$37-DATOS!$K$39)/(DATOS!$K$38*8) -> 10500 | L11: =(DATOS!$K$37-DATOS!$K$39)/(DATOS!$K$38*8) -> 10500 | M11: =(DATOS!$K$37-DATOS!$K$39)/(DATOS!$K$38*8) -> 10500 | N11: =(DATOS!$K$37-DATOS!$K$39)/(DATOS!$K$38*8) -> 10500 | O11: =(DATOS!$K$37-DATOS!$K$39)/(DATOS!$K$38*8) -> 10500
B12: + | C12: Depreciación de la maquinaria | D12: =(DATOS!$K$37-DATOS!$K$39)/(DATOS!$K$38*8) -> 10500 | E12: =(DATOS!$K$37-DATOS!$K$39)/(DATOS!$K$38*8) -> 10500 | F12: =(DATOS!$K$37-DATOS!$K$39)/(DATOS!$K$38*8) -> 10500 | G12: =(DATOS!$K$37-DATOS!$K$39)/(DATOS!$K$38*8) -> 10500 | H12: =(DATOS!$K$37-DATOS!$K$39)/(DATOS!$K$38*8) -> 10500 | I12: =(DATOS!$K$37-DATOS!$K$39)/(DATOS!$K$38*8) -> 10500 | J12: =(DATOS!$K$37-DATOS!$K$39)/(DATOS!$K$38*8) -> 10500 | K12: =(DATOS!$K$37-DATOS!$K$39)/(DATOS!$K$38*8) -> 10500 | L12: =(DATOS!$K$37-DATOS!$K$39)/(DATOS!$K$38*8) -> 10500 | M12: =(DATOS!$K$37-DATOS!$K$39)/(DATOS!$K$38*8) -> 10500 | N12: =(DATOS!$K$37-DATOS!$K$39)/(DATOS!$K$38*8) -> 10500 | O12: =(DATOS!$K$37-DATOS!$K$39)/(DATOS!$K$38*8) -> 10500
B13: + | C13: Costo de electricidad de la planta | D13: 0 | E13: 0 | F13: 0 | G13: 0 | H13: 0 | I13: 0 | J13: 0 | K13: 0 | L13: 0 | M13: 0 | N13: 0 | O13: 0
B14: + | C14: Costo de agua de la planta | D14: 0 | E14: 0 | F14: 0 | G14: 0 | H14: 0 | I14: 0 | J14: 0 | K14: 0 | L14: 0 | M14: 0 | N14: 0 | O14: 0
B15: + | C15: Costo de teléfono de la planta | D15: 0 | E15: 0 | F15: 0 | G15: 0 | H15: 0 | I15: 0 | J15: 0 | K15: 0 | L15: 0 | M15: 0 | N15: 0 | O15: 0
B16: + | C16: Costo de mantenimiento del equipo | D16: =DATOS!E32*IF(PP!D17<0,PP!D15,PP!D16) -> 700000 | E16: =POWER((1+DATOS!F32),1)*DATOS!E32*IF(PP!E17<0,PP!E15,PP!E16) -> 721000 | F16: =POWER((1+DATOS!F32),2)*DATOS!E32*IF(PP!F17<0,PP!F15,PP!F16) -> 742630 | G16: =POWER((1+DATOS!F32),3)*DATOS!E32*IF(PP!G17<0,PP!G15,PP!G16) -> 764908.9 | H16: =POWER((1+DATOS!F32),4)*DATOS!E32*IF(PP!H17<0,PP!H15,PP!H16) -> 787856.167 | I16: =POWER((1+DATOS!F32),5)*DATOS!E32*IF(PP!I17<0,PP!I15,PP!I16) -> 811491.852 | J16: =POWER((1+DATOS!F32),6)*DATOS!E32*IF(PP!J17<0,PP!J15,PP!J16) -> 835836.6076 | K16: =POWER((1+DATOS!F32),7)*DATOS!E32*IF(PP!K17<0,PP!K15,PP!K16) -> 860911.7058 | L16: =POWER((1+DATOS!F32),8)*DATOS!E32*IF(PP!L17<0,PP!L15,PP!L16) -> 886739.057 | M16: =POWER((1+DATOS!F32),9)*DATOS!E32*IF(PP!M17<0,PP!M15,PP!M16) -> 913341.2287 | N16: =POWER((1+DATOS!F32),10)*DATOS!E32*IF(PP!N17<0,PP!N15,PP!N16) -> 940741.4655 | O16: =POWER((1+DATOS!F32),11)*DATOS!E32*IF(PP!O17<0,PP!O15,PP!O16) -> 968963.7095
B17: + | C17: Costo de supervisión de la planta | D17: 0 | E17: 0 | F17: 0 | G17: 0 | H17: 0 | I17: 0 | J17: 0 | K17: 0 | L17: 0 | M17: 0 | N17: 0 | O17: 0
B18: + | C18: Seguro de la planta | D18: 0 | E18: 0 | F18: 0 | G18: 0 | H18: 0 | I18: 0 | J18: 0 | K18: 0 | L18: 0 | M18: 0 | N18: 0 | O18: 0
B19: + | C19: Costo de lubricantes y energéticos | D19: 0 | E19: 0 | F19: 0 | G19: 0 | H19: 0 | I19: 0 | J19: 0 | K19: 0 | L19: 0 | M19: 0 | N19: 0 | O19: 0
B20: = | C20: Total de gastos indirectos de fabricación | D20: =SUM(D11:D19) -> 721000 | E20: =SUM(E11:E19) -> 742000 | F20: 763630 | G20: 785908.9 | H20: 808856.167 | I20: 832491.852 | J20: 856836.6076 | K20: 881911.7058 | L20: 907739.057 | M20: 934341.2287 | N20: =SUM(N11:N19) -> 961741.4655 | O20: 989963.7095

Sheet PGO
C10: Trimestre | D10: 13 | E10: 14 | F10: 15 | G10: 16 | H10: 17 | I10: 18 | J10: 19 | K10: 20 | L10: 21 | M10: 22 | N10: 23 | O10: 24
C11: Gastos de Publicidad | D11: =DATOS!E21 -> 10000 | E11: =D11*(1+DATOS!F21) -> 10300 | F11: =E11*(1+DATOS!F21) -> 10609 | G11: =F11*(1+DATOS!F21) -> 10927.27 | H11: =G11*(1+DATOS!F21) -> 11255.0881 | I11: =H11*(1+DATOS!F21) -> 11592.74074 | J11: =I11*(1+DATOS!F21) -> 11940.52297 | K11: =J11*(1+DATOS!F21) -> 12298.73865 | L11: =K11*(1+DATOS!F21) -> 12667.70081 | M11: =L11*(1+DATOS!F21) -> 13047.73184 | N11: =M11*(1+DATOS!F21) -> 13439.16379 | O11: =N11*(1+DATOS!F21) -> 13842.33871
B12: + | C12: Sueldos de los vendedores | D12: =DATOS!E22*DATOS!E23 -> 1500000 | E12: =D12*(DATOS!F22+1) -> 1530000 | F12: =E12*(DATOS!F22+1) -> 1560600 | G12: =F12*(DATOS!F22+1) -> 1591812 | H12: =G12*(DATOS!F22+1) -> 1623648.24 | I12: =H12*(DATOS!F22+1) -> 1656121.205 | J12: =I12*(DATOS!F22+1) -> 1689243.629 | K12: =J12*(DATOS!F22+1) -> 1723028.501 | L12: =K12*(DATOS!F22+1) -> 1757489.072 | M12: =L12*(DATOS!F22+1) -> 1792638.853 | N12: =M12*(DATOS!F22+1) -> 1828491.63 | O12: =N12*(DATOS!F22+1) -> 1865061.463
B13: + | C13: Gastos Fijos de Ventas | D13: =DATOS!E24 -> 50000 | E13: =DATOS!E24 -> 50000 | F13: =DATOS!E24 -> 50000 | G13: =DATOS!E24 -> 50000 | H13: =DATOS!E24 -> 50000 | I13: =DATOS!E24 -> 50000 | J13: =DATOS!E24 -> 50000 | K13: =DATOS!E24 -> 50000 | L13: =DATOS!E24 -> 50000 | M13: =DATOS!E24 -> 50000 | N13: =DATOS!E24 -> 50000 | O13: =DATOS!E24 -> 50000
B14: = | C14: Total de gastos de ventas | D14: =D11+D12+D13 -> 1560000 | E14: =E11+E12+E13 -> 1590300 | F14: 1621209 | G14: 1652739.27 | H14: 1684903.328 | I14: 1717713.946 | J14: 1751184.152 | K14: 1785327.24 | L14: 1820156.772 | M14: 1855686.585 | N14: 1891930.794 | O14: 1928903.801
B16: + | C16: Sueldos de empleados | D16: =DATOS!E38*DATOS!E37 -> 1250000 | E16: =D16*(1+DATOS!F38) -> 1275000 | F16: =E16*(1+DATOS!F38) -> 1300500 | G16: =F16*(1+DATOS!F38) -> 1326510 | H16: =G16*(1+DATOS!F38) -> 1353040.2 | I16: =H16*(1+DATOS!F38) -> 1380101.004 | J16: =I16*(1+DATOS!F38) -> 1407703.024 | K16: =J16*(1+DATOS!F38) -> 1435857.085 | L16: =K16*(1+DATOS!F38) -> 1464574.226 | M16: =L16*(1+DATOS!F38) -> 1493865.711 | N16: =M16*(1+DATOS!F38) -> 1523743.025 | O16: =N16*(1+DATOS!F38) -> 1554217.885
B17: + | C17: Gastos Fijos de Administracion | D17: =DATOS!E39 -> 50000 | E17: =DATOS!E39 -> 50000 | F17: =DATOS!E39 -> 50000 | G17: =DATOS!E39 -> 50000 | H17: =DATOS!E39 -> 50000 | I17: =DATOS!E39 -> 50000 | J17: =DATOS!E39 -> 50000 | K17: =DATOS!E39 -> 50000 | L17: =DATOS!E39 -> 50000 | M17: =DATOS!E39 -> 50000 | N17: =DATOS!E39 -> 50000 | O17: =DATOS!E39 -> 50000
B18: = | C18: Total de gastos de administracion | D18: =D16+D17 -> 1300000 | E18: =E16+E17 -> 1325000 | F18: 1350500 | G18: 1376510 | H18: 1403040.2 | I18: 1430101.004 | J18: 1457703.024 | K18: 1485857.085 | L18: 1514574.226 | M18: 1543865.711 | N18: 1573743.025 | O18: 1604217.885
B20: = | C20: Total de gastos de administración y venta | D20: =D14+D18 -> 2860000 | E20: =E14+E18 -> 2915300 | F20: 2971709 | G20: 3029249.27 | H20: 3087943.528 | I20: 3147814.95 | J20: 3208887.176 | K20: 3271184.325 | L20: 3334730.999 | M20: 3399552.296 | N20: 3465673.819 | O20: 3533121.687

Sheet CUP
C10: Trimestre | D10: 13 | E10: 14 | F10: 15 | G10: 16 | H10: 17 | I10: 18 | J10: 19 | K10: 20 | L10: 21 | M10: 22 | N10: 23 | O10: 24
C11: Materia Prima "A" | D11: =PRC!D18*DATOS!J20 -> 2 | E11: =PRC!E18*DATOS!J20 -> 2.06 | F11: =PRC!F18*DATOS!J20 -> 2.1218 | G11: =PRC!G18*DATOS!J20 -> 2.185454 | H11: =PRC!H18*DATOS!J20 -> 2.25101762 | I11: =PRC!I18*DATOS!J20 -> 2.318548149 | J11: =PRC!J18*DATOS!J20 -> 2.388104593 | K11: =PRC!K18*DATOS!J20 -> 2.459747731 | L11: =PRC!L18*DATOS!J20 -> 2.533540163 | M11: =PRC!M18*DATOS!J20 -> 2.609546368 | N11: =PRC!N18*DATOS!J20 -> 2.687832759 | O11: =PRC!O18*DATOS!J20 -> 2.768467741
B12: + | C12: Materia Prima "B" | D12: =PRC!D30*DATOS!J21 -> 4 | E12: =PRC!E30*DATOS!J21 -> 4.12 | F12: =PRC!F30*DATOS!J21 -> 4.2436 | G12: =PRC!G30*DATOS!J21 -> 4.370908 | H12: =PRC!H30*DATOS!J21 -> 4.50203524 | I12: =PRC!I30*DATOS!J21 -> 4.637096297 | J12: =PRC!J30*DATOS!J21 -> 4.776209186 | K12: =PRC!K30*DATOS!J21 -> 4.919495462 | L12: =PRC!L30*DATOS!J21 -> 5.067080326 | M12: =PRC!M30*DATOS!J21 -> 5.219092735 | N12: =PRC!N30*DATOS!J21 -> 5.375665517 | O12: =PRC!O30*DATOS!J21 -> 5.536935483
B13: + | C13: Materia Prima "C" | D13: =PRC!D42*DATOS!J22 -> 4 | E13: =PRC!E42*DATOS!J22 -> 4.12 | F13: =PRC!F42*DATOS!J22 -> 4.2436 | G13: =PRC!G42*DATOS!J22 -> 4.370908 | H13: =PRC!H42*DATOS!J22 -> 4.50203524 | I13: =PRC!I42*DATOS!J22 -> 4.637096297 | J13: =PRC!J42*DATOS!J22 -> 4.776209186 | K13: =PRC!K42*DATOS!J22 -> 4.919495462 | L13: =PRC!L42*DATOS!J22 -> 5.067080326 | M13: =PRC!M42*DATOS!J22 -> 5.219092735 | N13: =PRC!N42*DATOS!J22 -> 5.375665517 | O13: =PRC!O42*DATOS!J22 -> 5.536935483
B14: + | C14: Mano de obra | D14: =PMO!D14*DATOS!J20 -> 6 | E14: =PMO!E14*DATOS!J20 -> 6.18 | F14: =PMO!F14*DATOS!J20 -> 6.3654 | G14: =PMO!G14*DATOS!J20 -> 6.556362 | H14: =PMO!H14*DATOS!J20 -> 6.75305286 | I14: =PMO!I14*DATOS!J20 -> 6.955644446 | J14: =PMO!J14*DATOS!J20 -> 7.164313779 | K14: =PMO!K14*DATOS!J20 -> 7.379243193 | L14: =PMO!L14*DATOS!J20 -> 7.600620488 | M14: =PMO!M14*DATOS!J20 -> 7.828639103 | N14: =PMO!N14*DATOS!J20 -> 8.063498276 | O14: =PMO!O14*DATOS!J20 -> 8.305403224
B15: + | C15: Gastos indirectos | D15: =PGIF!D20/PMO!D11 -> 5.15 | E15: =PGIF!E20/PMO!E11 -> 5.3 | F15: =PGIF!F20/PMO!F11 -> 5.4545 | G15: =PGIF!G20/PMO!G11 -> 5.613635 | H15: =PGIF!H20/PMO!H11 -> 5.77754405 | I15: =PGIF!I20/PMO!I11 -> 5.946370371 | J15: =PGIF!J20/PMO!J11 -> 6.120261483 | K15: =PGIF!K20/PMO!K11 -> 6.299369327 | L15: =PGIF!L20/PMO!L11 -> 6.483850407 | M15: =PGIF!M20/PMO!M11 -> 6.673865919 | N15: =PGIF!N20/PMO!N11 -> 6.869581897 | O15: =PGIF!O20/PMO!O11 -> 7.071169354
B16: = | C16: Gastos Unitarios | D16: =SUM(D11:D15) -> 21.15 | E16: =SUM(E11:E15) -> 21.78 | F16: =SUM(F11:F15) -> 22.4289 | G16: 23.097267 | H16: 23.78568501 | I16: 24.49475556 | J16: 25.22509823 | K16: 25.97735117 | L16: 26.75217171 | M16: 27.55023686 | N16: 28.37224397 | O16: =SUM(O11:O15) -> 29.21891129

Sheet VIF
C10: Trimestre | D10: 13 | E10: 14 | F10: 15 | G10: 16 | H10: 17 | I10: 18 | J10: 19 | K10: 20 | L10: 21 | M10: 22 | N10: 23 | O10: 24
C11: Materia Prima "A" | D11: =PRC!D14*PRC!D18 -> 14000 | E11: =PRC!E14*PRC!E18 -> 14420 | F11: =PRC!F14*PRC!F18 -> 14852.6 | G11: =PRC!G14*PRC!G18 -> 15298.178 | H11: =PRC!H14*PRC!H18 -> 15757.12334 | I11: =PRC!I14*PRC!I18 -> 16229.83704 | J11: =PRC!J14*PRC!J18 -> 16716.73215 | K11: =PRC!K14*PRC!K18 -> 17218.23412 | L11: =PRC!L14*PRC!L18 -> 17734.78114 | M11: =PRC!M14*PRC!M18 -> 18266.82457 | N11: =PRC!N14*PRC!N18 -> 18814.82931 | O11: =PRC!O14*PRC!O18 -> 19379.27419
B12: + | C12: Materia Prima "B" | D12: =PRC!D26*PRC!D30 -> 28000 | E12: =PRC!E26*PRC!E30 -> 28840 | F12: =PRC!F26*PRC!F30 -> 29705.2 | G12: =PRC!G26*PRC!G30 -> 30596.356 | H12: =PRC!H26*PRC!H30 -> 31514.24668 | I12: =PRC!I26*PRC!I30 -> 32459.67408 | J12: =PRC!J26*PRC!J30 -> 33433.4643 | K12: =PRC!K26*PRC!K30 -> 34436.46823 | L12: =PRC!L26*PRC!L30 -> 35469.56228 | M12: =PRC!M26*PRC!M30 -> 36533.64915 | N12: =PRC!N26*PRC!N30 -> 37629.65862 | O12: =PRC!O26*PRC!O30 -> 38758.54838
B13: + | C13: Materia Prima "C" | D13: =PRC!D38*PRC!D42 -> 28000 | E13: =PRC!E38*PRC!E42 -> 28840 | F13: =PRC!F38*PRC!F42 -> 29705.2 | G13: =PRC!G38*PRC!G42 -> 30596.356 | H13: =PRC!H38*PRC!H42 -> 31514.24668 | I13: =PRC!I38*PRC!I42 -> 32459.67408 | J13: =PRC!J38*PRC!J42 -> 33433.4643 | K13: =PRC!K38*PRC!K42 -> 34436.46823 | L13: =PRC!L38*PRC!L42 -> 35469.56228 | M13: =PRC!M38*PRC!M42 -> 36533.64915 | N13: =PRC!N38*PRC!N42 -> 37629.65862 | O13: =PRC!O38*PRC!O42 -> 38758.54838
B14: + | C14: Producto Terminado | D14: =PP!D12*CUP!D16 -> 302883.7762 | E14: =PP!E12*CUP!E16 -> 314700.6923 | F14: =PP!F12*CUP!F16 -> 326954.8064 | G14: =PP!G12*CUP!G16 -> 339661.7324 | H14: =PP!H12*CUP!H16 -> 352837.6277 | I14: =PP!I12*CUP!I16 -> 366499.2115 | J14: =PP!J12*CUP!J16 -> 380663.7842 | K14: =PP!K12*CUP!K16 -> 395349.247 | L14: =PP!L12*CUP!L16 -> 410574.1225 | M14: =PP!M12*CUP!M16 -> 426357.5758 | N14: =PP!N12*CUP!N16 -> 442719.4367 | O14: =PP!O12*CUP!O16 -> 452893.1249
B15: = | C15: Total de inventario Final | D15: =SUM(D11:D14) -> 372883.7762 | E15: =SUM(E11:E14) -> 386800.6923 | F15: 401217.8064 | G15: 416152.6224 | H15: 431623.2444 | I15: 447648.3967 | J15: 464247.4449 | K15: 481440.4175 | L15: 499248.0282 | M15: 517691.6987 | N15: 536793.5832 | O15: 549789.4959

Sheet VII
C10: Trimestre | D10: 13 | E10: 14 | F10: 15 | G10: 16 | H10: 17 | I10: 18 | J10: 19 | K10: 20 | L10: 21 | M10: 22 | N10: 23 | O10: 24
C11: Materia Prima "A" | D11: =PRC!D16*PRC!D18 -> 10000 | E11: =VIF!D11 -> 14000 | F11: =VIF!E11 -> 14420 | G11: =VIF!F11 -> 14852.6 | H11: =VIF!G11 -> 15298.178 | I11: =VIF!H11 -> 15757.12334 | J11: =VIF!I11 -> 16229.83704 | K11: =VIF!J11 -> 16716.73215 | L11: =VIF!K11 -> 17218.23412 | M11: =VIF!L11 -> 17734.78114 | N11: =VIF!M11 -> 18266.82457 | O11: =VIF!N11 -> 18814.82931
B12: + | C12: Materia Prima "B" | D12: =PRC!D28*PRC!D30 -> 24000 | E12: =VIF!D12 -> 28000 | F12: =VIF!E12 -> 28840 | G12: =VIF!F12 -> 29705.2 | H12: =VIF!G12 -> 30596.356 | I12: =VIF!H12 -> 31514.24668 | J12: =VIF!I12 -> 32459.67408 | K12: =VIF!J12 -> 33433.4643 | L12: =VIF!K12 -> 34436.46823 | M12: =VIF!L12 -> 35469.56228 | N12: =VIF!M12 -> 36533.64915 | O12: =VIF!N12 -> 37629.65862
B13: + | C13: Materia Prima "C" | D13: =PRC!D40*PRC!D42 -> 24000 | E13: =VIF!D13 -> 28000 | F13: =VIF!E13 -> 28840 | G13: =VIF!F13 -> 29705.2 | H13: =VIF!G13 -> 30596.356 | I13: =VIF!H13 -> 31514.24668 | J13: =VIF!I13 -> 32459.67408 | K13: =VIF!J13 -> 33433.4643 | L13: =VIF!K13 -> 34436.46823 | M13: =VIF!L13 -> 35469.56228 | N13: =VIF!M13 -> 36533.64915 | O13: =VIF!N13 -> 37629.65862
B14: + | C14: Producto Terminado | D14: =PP!D14*DATOS!E33 -> 300000 | E14: =VIF!D14 -> 302883.7762 | F14: =VIF!E14 -> 314700.6923 | G14: =VIF!F14 -> 326954.8064 | H14: =VIF!G14 -> 339661.7324 | I14: =VIF!H14 -> 352837.6277 | J14: =VIF!I14 -> 366499.2115 | K14: =VIF!J14 -> 380663.7842 | L14: =VIF!K14 -> 395349.247 | M14: =VIF!L14 -> 410574.1225 | N14: =VIF!M14 -> 426357.5758 | O14: =VIF!N14 -> 442719.4367
B15: = | C15: Total de inventario Inicial | D15: =D11+D12+D13+D14 -> 358000 | E15: 372883.7762 | F15: 386800.6923 | G15: 401217.8064 | H15: 416152.6224 | I15: 431623.2444 | J15: 447648.3967 | K15: 464247.4449 | L15: 481440.4175 | M15: 499248.0282 | N15: 517691.6987 | O15: 536793.5832

Sheet PCV
C10: Trimestre | D10: 13 | E10: 14 | F10: 15 | G10: 16 | H10: 17 | I10: 18 | J10: 19 | K10: 20 | L10: 21 | M10: 22 | N10: 23 | O10: 24
C11: Costos de compra Materia Prima A | D11: =PRC!D19 -> 284000 | E11: =PRC!E19 -> 288400 | F11: =PRC!F19 -> 297052 | G11: =PRC!G19 -> 305963.56 | H11: =PRC!H19 -> 315142.4668 | I11: =PRC!I19 -> 324596.7408 | J11: =PRC!J19 -> 334334.643 | K11: =PRC!K19 -> 344364.6823 | L11: =PRC!L19 -> 354695.6228 | M11: =PRC!M19 -> 365336.4915 | N11: =PRC!N19 -> 376296.5862 | O11: =PRC!O19 -> 387585.4838
B12: + | C12: Costos de compra Materia Prima B | D12: =PRC!D31 -> 564000 | E12: =PRC!E31 -> 576800 | F12: =PRC!F31 -> 594104 | G12: =PRC!G31 -> 611927.12 | H12: =PRC!H31 -> 630284.9336 | I12: =PRC!I31 -> 649193.4816 | J12: =PRC!J31 -> 668669.2861 | K12: =PRC!K31 -> 688729.3646 | L12: =PRC!L31 -> 709391.2456 | M12: =PRC!M31 -> 730672.9829 | N12: =PRC!N31 -> 752593.1724 | O12: =PRC!O31 -> 775170.9676
B13: + | C13: Costos de compra Materia Prima C | D13: =PRC!D43 -> 564000 | E13: =PRC!E43 -> 576800 | F13: =PRC!F43 -> 594104 | G13: =PRC!G43 -> 611927.12 | H13: =PRC!H43 -> 630284.9336 | I13: =PRC!I43 -> 649193.4816 | J13: =PRC!J43 -> 668669.2861 | K13: =PRC!K43 -> 688729.3646 | L13: =PRC!L43 -> 709391.2456 | M13: =PRC!M43 -> 730672.9829 | N13: =PRC!N43 -> 752593.1724 | O13: =PRC!O43 -> 775170.9676
B14: + | C14: Costo total de mano de obra | D14: =PMO!D15 -> 840000 | E14: =PMO!E15 -> 865200 | F14: =PMO!F15 -> 891156 | G14: =PMO!G15 -> 917890.68 | H14: =PMO!H15 -> 945427.4004 | I14: =PMO!I15 -> 973790.2224 | J14: =PMO!J15 -> 1003003.929 | K14: =PMO!K15 -> 1033094.047 | L14: =PMO!L15 -> 1064086.868 | M14: =PMO!M15 -> 1096009.474 | N14: =PMO!N15 -> 1128889.759 | O14: =PMO!O15 -> 1162756.451
B15: + | C15: Total de gastos indirectos | D15: =PGIF!D20 -> 721000 | E15: =PGIF!E20 -> 742000 | F15: =PGIF!F20 -> 763630 | G15: =PGIF!G20 -> 785908.9 | H15: =PGIF!H20 -> 808856.167 | I15: =PGIF!I20 -> 832491.852 | J15: =PGIF!J20 -> 856836.6076 | K15: =PGIF!K20 -> 881911.7058 | L15: =PGIF!L20 -> 907739.057 | M15: =PGIF!M20 -> 934341.2287 | N15: =PGIF!N20 -> 961741.4655 | O15: =PGIF!O20 -> 989963.7095
C16: Precio de subcontratar | D16: =DATOS!E30 -> 40 | E16: =D16*(1+DATOS!F30) -> 41.2 | F16: =E16*(1+DATOS!F30) -> 42.436 | G16: =F16*(1+DATOS!F30) -> 43.70908 | H16: =G16*(1+DATOS!F30) -> 45.0203524 | I16: =H16*(1+DATOS!F30) -> 46.37096297 | J16: =I16*(1+DATOS!F30) -> 47.76209186 | K16: =J16*(1+DATOS!F30) -> 49.19495462 | L16: =K16*(1+DATOS!F30) -> 50.67080326 | M16: =L16*(1+DATOS!F30) -> 52.19092735 | N16: =M16*(1+DATOS!F30) -> 53.75665517 | O16: =N16*(1+DATOS!F30) -> 55.36935483
B17: + | C17: Costo de subcontratación | D17: =PP!D17*PCV!D16 -> 49799.5338 | E17: =PP!E17*PCV!E16 -> 137434.1725 | F17: =PP!F17*PCV!F16 -> 196011.7851 | G17: =PP!G17*PCV!G16 -> 257980.3637 | H17: =PP!H17*PCV!H16 -> 323490.6464 | I17: =PP!I17*PCV!I16 -> 392699.3637 | J17: =PP!J17*PCV!J16 -> 465769.4625 | K17: =PP!K17*PCV!K16 -> 542870.3378 | L17: =PP!L17*PCV!L16 -> 624178.0731 | M17: =PP!M17*PCV!M16 -> 709875.6892 | N17: =PP!N17*PCV!N16 -> 800153.402 | O17: =PP!O17*PCV!O16 -> 882347.453
B18: = | C18: Costo Total de Produccion | D18: =D11+D12+D13+D14+D15+D17 -> 3022799.534 | E18: =E11+E12+E13+E14+E15+E17 -> 3186634.172 | F18: 3336057.785 | G18: 3491597.744 | H18: 3653486.548 | I18: 3821965.142 | J18: 3997283.214 | K18: 4179699.502 | L18: 4369482.112 | M18: 4566908.85 | N18: 4772267.557 | O18: 4972995.033

Sheet ER
C10: Trimestre | D10: 13 | E10: 14 | F10: 15 | G10: 16 | H10: 17 | I10: 18 | J10: 19 | K10: 20 | L10: 21 | M10: 22 | N10: 23 | O10: 24
C11: Ingreso Total | D11: =PI!D13 -> 10289507.58 | E11: =PI!E13 -> 10797842.42 | F11: =PI!F13 -> 11330380.85 | G11: =PI!G13 -> 11888245.8 | H11: =PI!H13 -> 12472611.34 | I11: =PI!I13 -> 13084704.92 | J11: =PI!J13 -> 13725809.82 | K11: =PI!K13 -> 14397267.58 | L11: =PI!L13 -> 15100480.66 | M11: =PI!M13 -> 15836915.16 | N11: =PI!N13 -> 16608103.66 | O11: =PI!O13 -> 17415648.17
B12: - | C12: IVA | D12: =D11-D13 -> 1419242.424 | E12: =E11-E13 -> 1489357.576 | F12: 1562811.152 | G12: 1639758.041 | H12: 1720360.184 | I12: 1804786.886 | J12: 1893215.147 | K12: 1985830.011 | L12: 2082824.919 | M12: 2184402.092 | N12: 2290772.918 | O12: 2402158.368
B13: = | C13: Ingreso Neto | D13: =D11/1.16 -> 8870265.152 | E13: =E11/1.16 -> 9308484.848 | F13: 9767569.697 | G13: 10248487.76 | H13: 10752251.15 | I13: 11279918.04 | J13: 11832594.67 | K13: 12411437.57 | L13: 13017655.74 | M13: 13652513.07 | N13: 14317330.74 | O13: 15013489.8
B14: - | C14: Costo de venta | D14: =VII!D15+PCV!D18-VIF!D15 -> 3007915.758 | E14: =VII!E15+PCV!E18-VIF!E15 -> 3172717.256 | F14: =VII!F15+PCV!F18-VIF!F15 -> 3321640.671 | G14: =VII!G15+PCV!G18-VIF!G15 -> 3476662.928 | H14: =VII!H15+PCV!H18-VIF!H15 -> 3638015.926 | I14: =VII!I15+PCV!I18-VIF!I15 -> 3805939.99 | J14: =VII!J15+PCV!J18-VIF!J15 -> 3980684.166 | K14: =VII!K15+PCV!K18-VIF!K15 -> 4162506.53 | L14: =VII!L15+PCV!L18-VIF!L15 -> 4351674.502 | M14: =VII!M15+PCV!M18-VIF!M15 -> 4548465.179 | N14: =VII!N15+PCV!N18-VIF!N15 -> 4753165.673 | O14: =VII!O15+PCV!O18-VIF!O15 -> 4959999.12
B15: = | C15: Utilidad Bruta | D15: =D13-D14 -> 5862349.394 | E15: =E13-E14 -> 6135767.592 | F15: 6445929.026 | G15: 6771824.83 | H15: 7114235.226 | I15: 7473978.047 | J15: 7851910.505 | K15: 8248931.037 | L15: 8665981.241 | M15: 9104047.893 | N15: 9564165.067 | O15: 10053490.68
B16: - | C16: Gastos de operación | D16: =PGO!D20 -> 2860000 | E16: =PGO!E20 -> 2915300 | F16: =PGO!F20 -> 2971709 | G16: =PGO!G20 -> 3029249.27 | H16: =PGO!H20 -> 3087943.528 | I16: =PGO!I20 -> 3147814.95 | J16: =PGO!J20 -> 3208887.176 | K16: =PGO!K20 -> 3271184.325 | L16: =PGO!L20 -> 3334730.999 | M16: =PGO!M20 -> 3399552.296 | N16: =PGO!N20 -> 3465673.819 | O16: =PGO!O20 -> 3533121.687
B17: - | C17: Gastos financieros | D17: =DATOS!K41*DATOS!L41 -> 3500 | E17: =FNE!E56*DATOS!L41 -> 0 | F17: =FNE!F56*DATOS!L41 -> 0 | G17: =FNE!G56*DATOS!L41 -> 0 | H17: =FNE!H56*DATOS!L41 -> 0 | I17: =FNE!I56*DATOS!L41 -> 0 | J17: =FNE!J56*DATOS!L41 -> 0 | K17: =FNE!K56*DATOS!L41 -> 0 | L17: =FNE!L56*DATOS!L41 -> 0 | M17: =FNE!M56*DATOS!L41 -> 0 | N17: =FNE!N56*DATOS!L41 -> 0 | O17: =FNE!O56*DATOS!L41 -> 0
B18: = | C18: Utilidad antes de impuestos | D18: =D15-D16-D17 -> 2998849.394 | E18: =E15-E16-E17 -> 3220467.592 | F18: =F15-F16-F17 -> 3474220.026 | G18: 3742575.56 | H18: 4026291.698 | I18: 4326163.097 | J18: 4643023.329 | K18: 4977746.712 | L18: 5331250.242 | M18: 5704495.598 | N18: 6098491.248 | O18: 6520368.992
B19: - | C19: Impuestos | D19: 0 | E19: =IF(AND(E18>DATOS!H27,E18<DATOS!I27),E18*0.1,IF(AND(E18>DATOS!H28,E18<DATOS!I28),E18*0.15,IF(AND(E18>DATOS!H29,E18<DATOS!I29),E18*0.2,IF(AND(E18>DATOS!H30,E18<DATOS!I30),E18*0.25,IF(AND(E18>DATOS!H31,E18<DATOS!I31),E18*0.3,IF(E18>DATOS!H32,E18*0.35,0)))))) -> 1127163.657 | F19: =IF(AND(F18>DATOS!H27,F18<DATOS!I27),F18*0.1,IF(AND(F18>DATOS!H28,F18<DATOS!I28),F18*0.15,IF(AND(F18>DATOS!H29,F18<DATOS!I29),F18*0.2,IF(AND(F18>DATOS!H30,F18<DATOS!I30),F18*0.25,IF(AND(F18>DATOS!H31,F18<DATOS!I31),F18*0.3,IF(F18>DATOS!H32,F18*0.35,0)))))) -> 1215977.009 | G19: =IF(AND(G18>DATOS!H27,G18<DATOS!I27),G18*0.1,IF(AND(G18>DATOS!H28,G18<DATOS!I28),G18*0.15,IF(AND(G18>DATOS!H29,G18<DATOS!I29),G18*0.2,IF(AND(G18>DATOS!H30,G18<DATOS!I30),G18*0.25,IF(AND(G18>DATOS!H31,G18<DATOS!I31),G18*0.3,IF(G18>DATOS!H32,G18*0.35,0)))))) -> 1309901.446 | H19: =IF(AND(H18>DATOS!H27,H18<DATOS!I27),H18*0.1,IF(AND(H18>DATOS!H28,H18<DATOS!I28),H18*0.15,IF(AND(H18>DATOS!H29,H18<DATOS!I29),H18*0.2,IF(AND(H18>DATOS!H30,H18<DATOS!I30),H18*0.25,IF(AND(H18>DATOS!H31,H18<DATOS!I31),H18*0.3,IF(H18>DATOS!H32,H18*0.35,0)))))) -> 1409202.094 | I19: =IF(AND(I18>DATOS!H27,I18<DATOS!I27),I18*0.1,IF(AND(I18>DATOS!H28,I18<DATOS!I28),I18*0.15,IF(AND(I18>DATOS!H29,I18<DATOS!I29),I18*0.2,IF(AND(I18>DATOS!H30,I18<DATOS!I30),I18*0.25,IF(AND(I18>DATOS!H31,I18<DATOS!I31),I18*0.3,IF(I18>DATOS!H32,I18*0.35,0)))))) -> 1514157.084 | J19: =IF(AND(J18>DATOS!H27,J18<DATOS!I27),J18*0.1,IF(AND(J18>DATOS!H28,J18<DATOS!I28),J18*0.15,IF(AND(J18>DATOS!H29,J18<DATOS!I29),J18*0.2,IF(AND(J18>DATOS!H30,J18<DATOS!I30),J18*0.25,IF(AND(J18>DATOS!H31,J18<DATOS!I31),J18*0.3,IF(J18>DATOS!H32,J18*0.35,0)))))) -> 1625058.165 | K19: =IF(AND(K18>DATOS!H27,K18<DATOS!I27),K18*0.1,IF(AND(K18>DATOS!H28,K18<DATOS!I28),K18*0.15,IF(AND(K18>DATOS!H29,K18<DATOS!I29),K18*0.2,IF(AND(K18>DATOS!H30,K18<DATOS!I30),K18*0.25,IF(AND(K18>DATOS!H31,K18<DATOS!I31),K18*0.3,IF(K18>DATOS!H32,K18*0.35,0)))))) -> 1742211.349 | L19: =IF(AND(L18>DATOS!H27,L18<DATOS!I27),L18*0.1,IF(AND(L18>DATOS!H28,L18<DATOS!I28),L18*0.15,IF(AND(L18>DATOS!H29,L18<DATOS!I29),L18*0.2,IF(AND(L18>DATOS!H30,L18<DATOS!I30),L18*0.25,IF(AND(L18>DATOS!H31,L18<DATOS!I31),L18*0.3,IF(L18>DATOS!H32,L18*0.35,0)))))) -> 1865937.585 | M19: =IF(AND(M18>DATOS!H27,M18<DATOS!I27),M18*0.1,IF(AND(M18>DATOS!H28,M18<DATOS!I28),M18*0.15,IF(AND(M18>DATOS!H29,M18<DATOS!I29),M18*0.2,IF(AND(M18>DATOS!H30,M18<DATOS!I30),M18*0.25,IF(AND(M18>DATOS!H31,M18<DATOS!I31),M18*0.3,IF(M18>DATOS!H32,M18*0.35,0)))))) -> 1996573.459 | N19: =IF(AND(N18>DATOS!H27,N18<DATOS!I27),N18*0.1,IF(AND(N18>DATOS!H28,N18<DATOS!I28),N18*0.15,IF(AND(N18>DATOS!H29,N18<DATOS!I29),N18*0.2,IF(AND(N18>DATOS!H30,N18<DATOS!I30),N18*0.25,IF(AND(N18>DATOS!H31,N18<DATOS!I31),N18*0.3,IF(N18>DATOS!H32,N18*0.35,0)))))) -> 2134471.937 | O19: =IF(AND(O18>DATOS!H27,O18<DATOS!I27),O18*0.1,IF(AND(O18>DATOS!H28,O18<DATOS!I28),O18*0.15,IF(AND(O18>DATOS!H29,O18<DATOS!I29),O18*0.2,IF(AND(O18>DATOS!H30,O18<DATOS!I30),O18*0.25,IF(AND(O18>DATOS!H31,O18<DATOS!I31),O18*0.3,IF(O18>DATOS!H32,O18*0.35,0)))))) -> 2282129.147
B20: = | C20: Utilidad o Perdida Neta | D20: =D18-D19 -> 2998849.394 | E20: =E18-E19 -> 2093303.935 | F20: =F18-F19 -> 2258243.017 | G20: 2432674.114 | H20: 2617089.603 | I20: 2812006.013 | J20: 3017965.164 | K20: 3235535.363 | L20: 3465312.657 | M20: 3707922.139 | N20: 3964019.311 | O20: =O18-O19 -> 4238239.845

Sheet FNE
C10: PASO 1 | E10: Presupuesto de ingreso
C12: Trimestre | E12: 13 | F12: 14 | G12: 15 | H12: 16 | I12: 17 | J12: 18 | K12: 19 | L12: 20 | M12: 21 | N12: 22 | O12: 23 | P12: 24 | Q12: 25
C13: Ventas | E13: =PI!D13 -> 10289507.58 | F13: =PI!E13 -> 10797842.42 | G13: =PI!F13 -> 11330380.85 | H13: =PI!G13 -> 11888245.8 | I13: =PI!H13 -> 12472611.34 | J13: =PI!I13 -> 13084704.92 | K13: =PI!J13 -> 13725809.82 | L13: =PI!K13 -> 14397267.58 | M13: =PI!L13 -> 15100480.66 | N13: =PI!M13 -> 15836915.16 | O13: =PI!N13 -> 16608103.66 | P13: =PI!O13 -> 17415648.17
B14: + | C14: Cobranza 40% Contado | E14: =E13*0.4 -> 4115803.03 | F14: =F13*0.4 -> 4319136.97 | G14: 4532152.339 | H14: 4755298.32 | I14: 4989044.534 | J14: 5233881.969 | K14: 5490323.927 | L14: 5758907.031 | M14: 6040192.265 | N14: 6334766.066 | O14: 6643241.463 | P14: =P13*0.4 -> 6966259.267
B15: + | C15: Cobranza 1 trimestre después 60% | E15: =DATOS!N17*0.6 -> 7800000 | F15: =E13*0.6 -> 6173704.545 | G15: =F13*0.6 -> 6478705.455 | H15: 6798228.509 | I15: 7132947.479 | J15: 7483566.801 | K15: 7850822.953 | L15: 8235485.891 | M15: 8638360.546 | N15: 9060288.397 | O15: 9502149.098 | P15: =O13*0.6 -> 9964862.195 | Q15: =P13*0.6 -> 10449388.9
B16: = | C16: Total de ingreso | E16: =E14+E15 -> 11915803.03 | F16: =F14+F15 -> 10492841.52 | G16: =G14+G15 -> 11010857.79 | H16: =H14+H15 -> 11553526.83 | I16: =I14+I15 -> 12121992.01 | J16: 12717448.77 | K16: 13341146.88 | L16: 13994392.92 | M16: 14678552.81 | N16: 15395054.46 | O16: 16145390.56 | P16: 16931121.46
C18: PASO 2 | E18: Presupuesto de egreso
C20: Trimestre | E20: 13 | F20: 14 | G20: 15 | H20: 16 | I20: 17 | J20: 18 | K20: 19 | L20: 20 | M20: 21 | N20: 22 | O20: 23 | P20: 24 | Q20: 25
C21: Compras materia prima A | E21: =PRC!D19 -> 284000 | F21: =PRC!E19 -> 288400 | G21: =PRC!F19 -> 297052 | H21: =PRC!G19 -> 305963.56 | I21: =PRC!H19 -> 315142.4668 | J21: =PRC!I19 -> 324596.7408 | K21: =PRC!J19 -> 334334.643 | L21: =PRC!K19 -> 344364.6823 | M21: =PRC!L19 -> 354695.6228 | N21: =PRC!M19 -> 365336.4915 | O21: =PRC!N19 -> 376296.5862 | P21: =PRC!O19 -> 387585.4838
B22: + | C22: Pago materia prima A 30% Contado | E22: =E21*0.3 -> 85200 | F22: =F21*0.3 -> 86520 | G22: 89115.6 | H22: 91789.068 | I22: 94542.74004 | J22: 97379.02224 | K22: 100300.3929 | L22: 103309.4047 | M22: 106408.6868 | N22: 109600.9474 | O22: 112888.9759 | P22: 116275.6451
B23: + | C23: Pago materia prima A 1 trimestre después 70% | E23: =DATOS!N20*0.7 -> 192500 | F23: =E21*0.7 -> 198800 | G23: =F21*0.7 -> 201880 | H23: 207936.4 | I23: 214174.492 | J23: 220599.7268 | K23: 227217.7186 | L23: 234034.2501 | M23: 241055.2776 | N23: 248286.936 | O23: 255735.544 | P23: 263407.6104 | Q23: 271309.8387
C25: Compras materia prima B | E25: =PRC!D31 -> 564000 | F25: =PRC!E31 -> 576800 | G25: =PRC!F31 -> 594104 | H25: =PRC!G31 -> 611927.12 | I25: =PRC!H31 -> 630284.9336 | J25: =PRC!I31 -> 649193.4816 | K25: =PRC!J31 -> 668669.2861 | L25: =PRC!K31 -> 688729.3646 | M25: =PRC!L31 -> 709391.2456 | N25: =PRC!M31 -> 730672.9829 | O25: =PRC!N31 -> 752593.1724 | P25: =PRC!O31 -> 775170.9676
B26: + | C26: Pago materia prima B 30% Contado | E26: =E25*0.3 -> 169200 | F26: =F25*0.3 -> 173040 | G26: 178231.2 | H26: 183578.136 | I26: 189085.4801 | J26: 194758.0445 | K26: 200600.7858 | L26: 206618.8094 | M26: 212817.3737 | N26: 219201.8949 | O26: 225777.9517 | P26: 232551.2903
B27: + | C27: Pago materia prima B 1 trimestre después 70% | E27: =DATOS!N21*0.7 -> 413000 | F27: =E25*0.7 -> 394800 | G27: =F25*0.7 -> 403760 | H27: 415872.8 | I27: 428348.984 | J27: 441199.4535 | K27: 454435.4371 | L27: 468068.5002 | M27: 482110.5552 | N27: 496573.8719 | O27: 511471.0881 | P27: 526815.2207 | Q27: 542619.6773
C29: Compras materia prima C | E29: =PRC!D43 -> 564000 | F29: =PRC!E43 -> 576800 | G29: =PRC!F43 -> 594104 | H29: =PRC!G43 -> 611927.12 | I29: =PRC!H43 -> 630284.9336 | J29: =PRC!I43 -> 649193.4816 | K29: =PRC!J43 -> 668669.2861 | L29: =PRC!K43 -> 688729.3646 | M29: =PRC!L43 -> 709391.2456 | N29: =PRC!M43 -> 730672.9829 | O29: =PRC!N43 -> 752593.1724 | P29: =PRC!O43 -> 775170.9676
B30: + | C30: Pago materia prima C 30% Contado | E30: =E29*0.3 -> 169200 | F30: =F29*0.3 -> 173040 | G30: 178231.2 | H30: 183578.136 | I30: 189085.4801 | J30: 194758.0445 | K30: 200600.7858 | L30: 206618.8094 | M30: 212817.3737 | N30: 219201.8949 | O30: 225777.9517 | P30: 232551.2903
B31: + | C31: Pago materia prima C 1 trimestre después 70% | E31: =DATOS!N22*0.7 -> 406000 | F31: =E29*0.7 -> 394800 | G31: =F29*0.7 -> 403760 | H31: 415872.8 | I31: 428348.984 | J31: 441199.4535 | K31: 454435.4371 | L31: 468068.5002 | M31: 482110.5552 | N31: 496573.8719 | O31: 511471.0881 | P31: 526815.2207 | Q31: 542619.6773
C33: Pago total materia prima A | E33: =E22+E23 -> 277700 | F33: 285320 | G33: 290995.6 | H33: 299725.468 | I33: 308717.232 | J33: 317978.749 | K33: 327518.1115 | L33: 337343.6548 | M33: 347463.9645 | N33: 357887.8834 | O33: 368624.5199 | P33: 379683.2555
B34: + | C34: Pago total materia prima B | E34: =E26+E27 -> 582200 | F34: 567840 | G34: 581991.2 | H34: 599450.936 | I34: 617434.4641 | J34: 635957.498 | K34: 655036.2229 | L34: 674687.3096 | M34: 694927.9289 | N34: 715775.7668 | O34: 737249.0398 | P34: 759366.511
B35: + | C35: Pago total materia prima C | E35: =E30+E31 -> 575200 | F35: 567840 | G35: 581991.2 | H35: 599450.936 | I35: 617434.4641 | J35: 635957.498 | K35: 655036.2229 | L35: 674687.3096 | M35: 694927.9289 | N35: 715775.7668 | O35: 737249.0398 | P35: 759366.511
B36: + | C36: Costo de mano de obra | E36: =PMO!D15 -> 840000 | F36: =PMO!E15 -> 865200 | G36: =PMO!F15 -> 891156 | H36: =PMO!G15 -> 917890.68 | I36: =PMO!H15 -> 945427.4004 | J36: =PMO!I15 -> 973790.2224 | K36: =PMO!J15 -> 1003003.929 | L36: =PMO!K15 -> 1033094.047 | M36: =PMO!L15 -> 1064086.868 | N36: =PMO!M15 -> 1096009.474 | O36: =PMO!N15 -> 1128889.759 | P36: =PMO!O15 -> 1162756.451 | Q36: =ER!P14 -> 0
B37: + | C37: Costo de mantenimiento | E37: =PGIF!D16 -> 700000 | F37: =PGIF!E16 -> 721000 | G37: =PGIF!F16 -> 742630 | H37: =PGIF!G16 -> 764908.9 | I37: =PGIF!H16 -> 787856.167 | J37: =PGIF!I16 -> 811491.852 | K37: =PGIF!J16 -> 835836.6076 | L37: =PGIF!K16 -> 860911.7058 | M37: =PGIF!L16 -> 886739.057 | N37: =PGIF!M16 -> 913341.2287 | O37: =PGIF!N16 -> 940741.4655 | P37: =PGIF!O16 -> 968963.7095 | Q37: =ER!P16 -> 0
B38: + | C38: Costo de subcontratacion | E38: =PCV!D17 -> 49799.5338 | F38: =PCV!E17 -> 137434.1725 | G38: =PCV!F17 -> 196011.7851 | H38: =PCV!G17 -> 257980.3637 | I38: =PCV!H17 -> 323490.6464 | J38: =PCV!I17 -> 392699.3637 | K38: =PCV!J17 -> 465769.4625 | L38: =PCV!K17 -> 542870.3378 | M38: =PCV!L17 -> 624178.0731 | N38: =PCV!M17 -> 709875.6892 | O38: =PCV!N17 -> 800153.402 | P38: =PCV!O17 -> 882347.453 | Q38: =ER!P17 -> 0
C39: Gastos financieros | E39: =ER!D17 -> 3500 | F39: =ER!E17 -> 0 | G39: =ER!F17 -> 0 | H39: =ER!G17 -> 0 | I39: =ER!H17 -> 0 | J39: =ER!I17 -> 0 | K39: =ER!J17 -> 0 | L39: =ER!K17 -> 0 | M39: =ER!L17 -> 0 | N39: =ER!M17 -> 0 | O39: =ER!N17 -> 0 | P39: =ER!O17 -> 0
C40: Gastos de operación | E40: =PGO!D20 -> 2860000 | F40: =PGO!E20 -> 2915300 | G40: =PGO!F20 -> 2971709 | H40: =PGO!G20 -> 3029249.27 | I40: =PGO!H20 -> 3087943.528 | J40: =PGO!I20 -> 3147814.95 | K40: =PGO!J20 -> 3208887.176 | L40: =PGO!K20 -> 3271184.325 | M40: =PGO!L20 -> 3334730.999 | N40: =PGO!M20 -> 3399552.296 | O40: =PGO!N20 -> 3465673.819 | P40: =PGO!O20 -> 3533121.687
B41: + | C41: IVA | E41: =ER!D12 -> 1419242.424 | F41: =ER!E12 -> 1489357.576 | G41: =ER!F12 -> 1562811.152 | H41: =ER!G12 -> 1639758.041 | I41: =ER!H12 -> 1720360.184 | J41: =ER!I12 -> 1804786.886 | K41: =ER!J12 -> 1893215.147 | L41: =ER!K12 -> 1985830.011 | M41: =ER!L12 -> 2082824.919 | N41: =ER!M12 -> 2184402.092 | O41: =ER!N12 -> 2290772.918 | P41: =ER!O12 -> 2402158.368 | Q41: =ER!P12 -> 0
B42: + | C42: Impuestos | E42: =ER!D19 -> 0 | F42: =ER!E19 -> 1127163.657 | G42: =ER!F19 -> 1215977.009 | H42: =ER!G19 -> 1309901.446 | I42: =ER!H19 -> 1409202.094 | J42: =ER!I19 -> 1514157.084 | K42: =ER!J19 -> 1625058.165 | L42: =ER!K19 -> 1742211.349 | M42: =ER!L19 -> 1865937.585 | N42: =ER!M19 -> 1996573.459 | O42: =ER!N19 -> 2134471.937 | P42: =ER!O19 -> 2282129.147 | Q42: =ER!P19 -> 0
B43: = | C43: Total de egreso | E43: =SUM(E33:E42) -> 7307641.958 | F43: =SUM(F33:F42) -> 8676455.405 | G43: 9035272.946 | H43: 9418316.041 | I43: 9817866.18 | J43: 10234634.1 | K43: 10669361.04 | L43: 11122820.05 | M43: 11595817.32 | N43: 12089193.66 | O43: 12603825.9 | P43: 13129893.09 | Q43: =Q36+Q37+Q38+Q42+Q41 -> 0
C46: PASO 3 | E46: Flujo neto de Operación
C48: Trimestre | E48: 13 | F48: 14 | G48: 15 | H48: 16 | I48: 17 | J48: 18 | K48: 19 | L48: 20 | M48: 21 | N48: 22 | O48: 23 | P48: 24
C49: Total de ingresos | E49: =E16 -> 11915803.03 | F49: 10492841.52 | G49: 11010857.79 | H49: 11553526.83 | I49: 12121992.01 | J49: 12717448.77 | K49: 13341146.88 | L49: 13994392.92 | M49: 14678552.81 | N49: 15395054.46 | O49: 16145390.56 | P49: 16931121.46
B50: - | C50: Total de egresos | E50: =E43 -> 7307641.958 | F50: =F43 -> 8676455.405 | G50: 9035272.946 | H50: 9418316.041 | I50: 9817866.18 | J50: 10234634.1 | K50: 10669361.04 | L50: 11122820.05 | M50: 11595817.32 | N50: 12089193.66 | O50: 12603825.9 | P50: 13129893.09
B51: = | C51: Flujo de operación | E51: =E49-E50 -> 4608161.072 | F51: =F49-F50 -> 1816386.11 | G51: 1975584.848 | H51: 2135210.788 | I51: 2304125.833 | J51: 2482814.668 | K51: 2671785.836 | L51: 2871572.872 | M51: 3082735.488 | N51: 3305860.807 | O51: 3541564.662 | P51: 3801228.368
C53: PASO 4 | E53: Flujo Neto de Efectivo (FNE)
C55: Trimestre | E55: 13 | F55: 14 | G55: 15 | H55: 16 | I55: 17 | J55: 18 | K55: 19 | L55: 20 | M55: 21 | N55: 22 | O55: 23 | P55: 24
C56: Prestamo requerido | E56: =IF(E51+DATOS!K40-E57>0,0,(E51+DATOS!K40-E57)*-1) -> 0 | F56: =IF(E59+F51-F57>0, 0, (E59+F51-F57)*-1) -> 0 | G56: =IF(F59+G51-G57>0, 0, (F59+G51-G57)*-1) -> 0 | H56: 0 | I56: 0 | J56: 0 | K56: 0 | L56: 0 | M56: 0 | N56: 0 | O56: 0 | P56: 0
B57: - | C57: Pago del prestamo anterior | E57: =DATOS!K41 -> 100000 | F57: =E56 -> 0 | G57: =F56 -> 0 | H57: 0 | I57: 0 | J57: 0 | K57: 0 | L57: 0 | M57: 0 | N57: 0 | O57: 0 | P57: 0
B58: = | C58: Flujo Financiero | E58: =E56-E57 -> -100000 | F58: =F56-F57 -> 0 | G58: 0 | H58: 0 | I58: 0 | J58: 0 | K58: 0 | L58: 0 | M58: 0 | N58: 0 | O58: 0 | P58: 0
B59: = | C59: Flujo Neto de Efectivo | E59: =IF(E51+DATOS!K40-E57<0,0,E51+DATOS!K40-E57) -> 4761661.072 | F59: =IF(E59+F51-F57<0, 0, E59+F51-F57) -> 6578047.182 | G59: =IF(F59+G51-G57<0, 0, F59+G51-G57) -> 8553632.03 | H59: 10688842.82 | I59: 12992968.65 | J59: 15475783.32 | K59: 18147569.15 | L59: 21019142.03 | M59: 24101877.52 | N59: 27407738.32 | O59: 30949302.98 | P59: 34750531.35

Sheet BG
D10: 13 | E10: 14 | F10: 15 | G10: 16 | H10: 17 | I10: 18 | J10: 19 | K10: 20 | L10: 21 | M10: 22 | N10: 23 | O10: 24
C11: ACTIVOS
C12: Efectivo | D12: =FNE!E59 -> 4761661.072 | E12: =FNE!F59 -> 6578047.182 | F12: =FNE!G59 -> 8553632.03 | G12: =FNE!H59 -> 10688842.82 | H12: =FNE!I59 -> 12992968.65 | I12: =FNE!J59 -> 15475783.32 | J12: =FNE!K59 -> 18147569.15 | K12: =FNE!L59 -> 21019142.03 | L12: =FNE!M59 -> 24101877.52 | M12: =FNE!N59 -> 27407738.32 | N12: =FNE!O59 -> 30949302.98 | O12: =FNE!P59 -> 34750531.35
C13: Inventario de producto terminado | D13: =VIF!D14 -> 302883.7762 | E13: =VIF!E14 -> 314700.6923 | F13: =VIF!F14 -> 326954.8064 | G13: =VIF!G14 -> 339661.7324 | H13: =VIF!H14 -> 352837.6277 | I13: =VIF!I14 -> 366499.2115 | J13: =VIF!J14 -> 380663.7842 | K13: =VIF!K14 -> 395349.247 | L13: =VIF!L14 -> 410574.1225 | M13: =VIF!M14 -> 426357.5758 | N13: =VIF!N14 -> 442719.4367 | O13: =VIF!O14 -> 452893.1249
C14: Inventario de materia prima A | D14: =VIF!D11 -> 14000 | E14: =VIF!E11 -> 14420 | F14: =VIF!F11 -> 14852.6 | G14: =VIF!G11 -> 15298.178 | H14: =VIF!H11 -> 15757.12334 | I14: =VIF!I11 -> 16229.83704 | J14: =VIF!J11 -> 16716.73215 | K14: =VIF!K11 -> 17218.23412 | L14: =VIF!L11 -> 17734.78114 | M14: =VIF!M11 -> 18266.82457 | N14: =VIF!N11 -> 18814.82931 | O14: =VIF!O11 -> 19379.27419
C15: Inventario de materia prima B | D15: =VIF!D12 -> 28000 | E15: =VIF!E12 -> 28840 | F15: =VIF!F12 -> 29705.2 | G15: =VIF!G12 -> 30596.356 | H15: =VIF!H12 -> 31514.24668 | I15: =VIF!I12 -> 32459.67408 | J15: =VIF!J12 -> 33433.4643 | K15: =VIF!K12 -> 34436.46823 | L15: =VIF!L12 -> 35469.56228 | M15: =VIF!M12 -> 36533.64915 | N15: =VIF!N12 -> 37629.65862 | O15: =VIF!O12 -> 38758.54838
C16: Inventario de materia prima C | D16: =VIF!D13 -> 28000 | E16: =VIF!E13 -> 28840 | F16: =VIF!F13 -> 29705.2 | G16: =VIF!G13 -> 30596.356 | H16: =VIF!H13 -> 31514.24668 | I16: =VIF!I13 -> 32459.67408 | J16: =VIF!J13 -> 33433.4643 | K16: =VIF!K13 -> 34436.46823 | L16: =VIF!L13 -> 35469.56228 | M16: =VIF!M13 -> 36533.64915 | N16: =VIF!N13 -> 37629.65862 | O16: =VIF!O13 -> 38758.54838
C17: Cuentas por Cobrar | D17: =FNE!F15 -> 6173704.545 | E17: =FNE!G15 -> 6478705.455 | F17: =FNE!H15 -> 6798228.509 | G17: =FNE!I15 -> 7132947.479 | H17: =FNE!J15 -> 7483566.801 | I17: =FNE!K15 -> 7850822.953 | J17: =FNE!L15 -> 8235485.891 | K17: =FNE!M15 -> 8638360.546 | L17: =FNE!N15 -> 9060288.397 | M17: =FNE!O15 -> 9502149.098 | N17: =FNE!P15 -> 9964862.195 | O17: =FNE!Q15 -> 10449388.9
C18: Total Activo circulante | D18: =SUM(D12:D17) -> 11308249.39 | E18: =SUM(E12:E17) -> 13443553.33 | F18: 15753078.35 | G18: 18237942.92 | H18: 20908158.7 | I18: 23774254.67 | J18: 26847302.49 | K18: 30138942.99 | L18: 33661413.94 | M18: 37427579.12 | N18: 41450958.76 | O18: =SUM(O12:O17) -> 45749709.75
C20: Equipo | D20: =DATOS!K37 -> 500000 | E20: =DATOS!K37 -> 500000 | F20: =DATOS!K37 -> 500000 | G20: =DATOS!K37 -> 500000 | H20: =DATOS!K37 -> 500000 | I20: =DATOS!K37 -> 500000 | J20: =DATOS!K37 -> 500000 | K20: =DATOS!K37 -> 500000 | L20: =DATOS!K37 -> 500000 | M20: =DATOS!K37 -> 500000 | N20: =DATOS!K37 -> 500000 | O20: =DATOS!K37 -> 500000
C21: Depreciación Acumulada | D21: =PGIF!D11+PGIF!D12 -> 21000 | E21: =PGIF!E11+PGIF!E12+BG!D21 -> 42000 | F21: =PGIF!F11+PGIF!F12+BG!E21 -> 63000 | G21: =PGIF!G11+PGIF!G12+BG!F21 -> 84000 | H21: =PGIF!H11+PGIF!H12+BG!G21 -> 105000 | I21: =PGIF!I11+PGIF!I12+BG!H21 -> 126000 | J21: =PGIF!J11+PGIF!J12+BG!I21 -> 147000 | K21: =PGIF!K11+PGIF!K12+BG!J21 -> 168000 | L21: =PGIF!L11+PGIF!L12+BG!K21 -> 189000 | M21: =PGIF!M11+PGIF!M12+BG!L21 -> 210000 | N21: =PGIF!N11+PGIF!N12+BG!M21 -> 231000 | O21: =PGIF!O11+PGIF!O12+BG!N21 -> 252000
C22: Total Activo fijo | D22: =D20-D21 -> 479000 | E22: =E20-E21 -> 458000 | F22: =F20-F21 -> 437000 | G22: 416000 | H22: 395000 | I22: 374000 | J22: 353000 | K22: 332000 | L22: 311000 | M22: 290000 | N22: 269000 | O22: 248000
C24: Total de Activos | D24: =D18+D22 -> 11787249.39 | E24: =E18+E22 -> 13901553.33 | F24: 16190078.35 | G24: 18653942.92 | H24: 21303158.7 | I24: 24148254.67 | J24: 27200302.49 | K24: 30470942.99 | L24: 33972413.94 | M24: 37717579.12 | N24: 41719958.76 | O24: =O18+O22 -> 45997709.75
C26: PASIVOS
C27: Prestamo | D27: =FNE!E56 -> 0 | E27: =FNE!F56 -> 0 | F27: =FNE!G56 -> 0 | G27: =FNE!H56 -> 0 | H27: =FNE!I56 -> 0 | I27: =FNE!J56 -> 0 | J27: =FNE!K56 -> 0 | K27: =FNE!L56 -> 0 | L27: =FNE!M56 -> 0 | M27: =FNE!N56 -> 0 | N27: =FNE!O56 -> 0 | O27: =FNE!P56 -> 0
C28: Cuentas por Pagar | D28: =FNE!F23+FNE!F27+FNE!F31 -> 988400 | E28: =FNE!G23+FNE!G27+FNE!G31 -> 1009400 | F28: =FNE!H23+FNE!H27+FNE!H31 -> 1039682 | G28: =FNE!I23+FNE!I27+FNE!I31 -> 1070872.46 | H28: =FNE!J23+FNE!J27+FNE!J31 -> 1102998.634 | I28: =FNE!K23+FNE!K27+FNE!K31 -> 1136088.593 | J28: =FNE!L23+FNE!L27+FNE!L31 -> 1170171.251 | K28: =FNE!M23+FNE!M27+FNE!M31 -> 1205276.388 | L28: =FNE!N23+FNE!N27+FNE!N31 -> 1241434.68 | M28: =FNE!O23+FNE!O27+FNE!O31 -> 1278677.72 | N28: =FNE!P23+FNE!P27+FNE!P31 -> 1317038.052 | O28: =FNE!Q23+FNE!Q27+FNE!Q31 -> 1356549.193
C29: Total de pasivos | D29: =SUM(D27:D28) -> 988400 | E29: =SUM(E27:E28) -> 1009400 | F29: 1039682 | G29: 1070872.46 | H29: 1102998.634 | I29: 1136088.593 | J29: 1170171.251 | K29: 1205276.388 | L29: 1241434.68 | M29: 1278677.72 | N29: 1317038.052 | O29: 1356549.193
C31: CAPITAL CONTABLE
C32: Capital Social | D32: =DATOS!K42 -> 7800000 | E32: =DATOS!K42 -> 7800000 | F32: =DATOS!K42 -> 7800000 | G32: =DATOS!K42 -> 7800000 | H32: =DATOS!K42 -> 7800000 | I32: =DATOS!K42 -> 7800000 | J32: =DATOS!K42 -> 7800000 | K32: =DATOS!K42 -> 7800000 | L32: =DATOS!K42 -> 7800000 | M32: =DATOS!K42 -> 7800000 | N32: =DATOS!K42 -> 7800000 | O32: =DATOS!K42 -> 7800000
C33: Utilidad Acumulada | D33: =ER!D20+DATOS!E42 -> 2998849.394 | E33: =ER!E20+BG!D33 -> 5092153.329 | F33: =ER!F20+BG!E33 -> 7350396.346 | G33: =ER!G20+BG!F33 -> 9783070.46 | H33: =ER!H20+BG!G33 -> 12400160.06 | I33: =ER!I20+BG!H33 -> 15212166.08 | J33: =ER!J20+BG!I33 -> 18230131.24 | K33: =ER!K20+BG!J33 -> 21465666.6 | L33: =ER!L20+BG!K33 -> 24930979.26 | M33: =ER!M20+BG!L33 -> 28638901.4 | N33: =ER!N20+BG!M33 -> 32602920.71 | O33: =ER!O20+BG!N33 -> 36841160.56
C34: Total capital contable | D34: =SUM(D32:D33) -> 10798849.39 | E34: =SUM(E32:E33) -> 12892153.33 | F34: 15150396.35 | G34: 17583070.46 | H34: 20200160.06 | I34: 23012166.08 | J34: 26030131.24 | K34: 29265666.6 | L34: 32730979.26 | M34: 36438901.4 | N34: 40402920.71 | O34: =SUM(O32:O33) -> 44641160.56
C36: Total capital + pasivos | D36: =D29+D34 -> 11787249.39 | E36: =E29+E34 -> 13901553.33 | F36: 16190078.35 | G36: 18653942.92 | H36: 21303158.7 | I36: 24148254.67 | J36: 27200302.49 | K36: 30470942.99 | L36: 33972413.94 | M36: 37717579.12 | N36: 41719958.76 | O36: 45997709.75
D37: =D24-D36 -> 0 | E37: =E24-E36 -> 0 | F37: 0 | G37: 0 | H37: 0 | I37: 0 | J37: 0 | K37: 0 | L37: 0 | M37: 0 | N37: 0 | O37: 0

Sheet RESULTADO
C10: Trimestre | E10: 13 | F10: 14 | G10: 15 | H10: 16 | I10: 17 | J10: 18 | K10: 19 | L10: 20 | M10: 21 | N10: 22 | O10: 23 | P10: 24
C11: Utilidad o pérdida neta | E11: =ER!D20 -> 2998849.394 | F11: =ER!E20 -> 2093303.935 | G11: =ER!F20 -> 2258243.017 | H11: =ER!G20 -> 2432674.114 | I11: =ER!H20 -> 2617089.603 | J11: =ER!I20 -> 2812006.013 | K11: =ER!J20 -> 3017965.164 | L11: =ER!K20 -> 3235535.363 | M11: =ER!L20 -> 3465312.657 | N11: =ER!M20 -> 3707922.139 | O11: =ER!N20 -> 3964019.311 | P11: =ER!O20 -> 4238239.845
C12: Total de ingreso | E12: =FNE!E16 -> 11915803.03 | F12: =FNE!F16 -> 10492841.52 | G12: =FNE!G16 -> 11010857.79 | H12: =FNE!H16 -> 11553526.83 | I12: =FNE!I16 -> 12121992.01 | J12: =FNE!J16 -> 12717448.77 | K12: =FNE!K16 -> 13341146.88 | L12: =FNE!L16 -> 13994392.92 | M12: =FNE!M16 -> 14678552.81 | N12: =FNE!N16 -> 15395054.46 | O12: =FNE!O16 -> 16145390.56 | P12: =FNE!P16 -> 16931121.46
C13: Total de egreso | E13: =FNE!E43 -> 7307641.958 | F13: =FNE!F43 -> 8676455.405 | G13: =FNE!G43 -> 9035272.946 | H13: =FNE!H43 -> 9418316.041 | I13: =FNE!I43 -> 9817866.18 | J13: =FNE!J43 -> 10234634.1 | K13: =FNE!K43 -> 10669361.04 | L13: =FNE!L43 -> 11122820.05 | M13: =FNE!M43 -> 11595817.32 | N13: =FNE!N43 -> 12089193.66 | O13: =FNE!O43 -> 12603825.9 | P13: =FNE!P43 -> 13129893.09
C14: Flujo de operación | E14: =FNE!E51 -> 4608161.072 | F14: =FNE!F51 -> 1816386.11 | G14: =FNE!G51 -> 1975584.848 | H14: =FNE!H51 -> 2135210.788 | I14: =FNE!I51 -> 2304125.833 | J14: =FNE!J51 -> 2482814.668 | K14: =FNE!K51 -> 2671785.836 | L14: =FNE!L51 -> 2871572.872 | M14: =FNE!M51 -> 3082735.488 | N14: =FNE!N51 -> 3305860.807 | O14: =FNE!O51 -> 3541564.662 | P14: =FNE!P51 -> 3801228.368
C15: Prestamo requerido | E15: =FNE!E56 -> 0 | F15: =FNE!F56 -> 0 | G15: =FNE!G56 -> 0 | H15: =FNE!H56 -> 0 | I15: =FNE!I56 -> 0 | J15: =FNE!J56 -> 0 | K15: =FNE!K56 -> 0 | L15: =FNE!L56 -> 0 | M15: =FNE!M56 -> 0 | N15: =FNE!N56 -> 0 | O15: =FNE!O56 -> 0 | P15: =FNE!P56 -> 0
C16: Flujo financiero | E16: =FNE!E58 -> -100000 | F16: =FNE!F58 -> 0 | G16: =FNE!G58 -> 0 | H16: =FNE!H58 -> 0 | I16: =FNE!I58 -> 0 | J16: =FNE!J58 -> 0 | K16: =FNE!K58 -> 0 | L16: =FNE!L58 -> 0 | M16: =FNE!M58 -> 0 | N16: =FNE!N58 -> 0 | O16: =FNE!O58 -> 0 | P16: =FNE!P58 -> 0
C17: Flujo neto de fectivo (FNE) | E17: =FNE!E59 -> 4761661.072 | F17: =FNE!F59 -> 6578047.182 | G17: =FNE!G59 -> 8553632.03 | H17: =FNE!H59 -> 10688842.82 | I17: =FNE!I59 -> 12992968.65 | J17: =FNE!J59 -> 15475783.32 | K17: =FNE!K59 -> 18147569.15 | L17: =FNE!L59 -> 21019142.03 | M17: =FNE!M59 -> 24101877.52 | N17: =FNE!N59 -> 27407738.32 | O17: =FNE!O59 -> 30949302.98 | P17: =FNE!P59 -> 34750531.35
C18: Total de activos | E18: =BG!D24 -> 11787249.39 | F18: =BG!E24 -> 13901553.33 | G18: =BG!F24 -> 16190078.35 | H18: =BG!G24 -> 18653942.92 | I18: =BG!H24 -> 21303158.7 | J18: =BG!I24 -> 24148254.67 | K18: =BG!J24 -> 27200302.49 | L18: =BG!K24 -> 30470942.99 | M18: =BG!L24 -> 33972413.94 | N18: =BG!M24 -> 37717579.12 | O18: =BG!N24 -> 41719958.76 | P18: =BG!O24 -> 45997709.75
C19: Total pasivo | E19: =BG!D29 -> 988400 | F19: =BG!E29 -> 1009400 | G19: =BG!F29 -> 1039682 | H19: =BG!G29 -> 1070872.46 | I19: =BG!H29 -> 1102998.634 | J19: =BG!I29 -> 1136088.593 | K19: =BG!J29 -> 1170171.251 | L19: =BG!K29 -> 1205276.388 | M19: =BG!L29 -> 1241434.68 | N19: =BG!M29 -> 1278677.72 | O19: =BG!N29 -> 1317038.052 | P19: =BG!O29 -> 1356549.193
C20: Total capital contable | E20: =BG!D34 -> 10798849.39 | F20: =BG!E34 -> 12892153.33 | G20: =BG!F34 -> 15150396.35 | H20: =BG!G34 -> 17583070.46 | I20: =BG!H34 -> 20200160.06 | J20: =BG!I34 -> 23012166.08 | K20: =BG!J34 -> 26030131.24 | L20: =BG!K34 -> 29265666.6 | M20: =BG!L34 -> 32730979.26 | N20: =BG!M34 -> 36438901.4 | O20: =BG!N34 -> 40402920.71 | P20: =BG!O34 -> 44641160.56

Sheet ACT
B2: ACTIVIDADES DE APRENDIZAJE
B5: 1.- PRÁCTICA 5: PRESUPUESTO MAESTRO "EL EMPERADOR S.A. de C.V."
